Workbook

Sheet README
A1: FIRフィルタ計算用EXCELシート
A3: ●パラメータ | B3: 値 | D3: 反映される列
A4: サンプリング周波数 | B4: 44100 | D4: f-responseのomega列, io-ding44k1, io-sinwaveのTime列
A5: 入力サイン波①の周波数 | B5: 1000 | D5: io-sinwaveのx1[n]列
A6: 入力サイン波②の周波数 | B6: 4000 | D6: io-sinwaveのx2[n]列
A7: 入力サイン波③の周波数 | B7: 7000 | D7: io-sinwaveのx3[n]列
A8: F特計算周波数のステップ | B8: 100 | D8: f-responseのfrequency列
A9: （＊）F特の計算、出力の計算にはVBAを使います（詳しくは弊社サイトhttp://digitalfilter.comの「スマホとEXCELで学ぶ！実践ディジタル信号処理入門」ご参照）
A10: （＊）FIRの係数はf-responseシートのD列に直接入力します。係数の数（140）を変更する際はVBAも変更しましょう
A12: ●シートの説明（詳しくは弊社サイトhttp://digitalfilter.comの「スマホとEXCELで学ぶ！実践ディジタル信号処理入門」ご参照）
A13: f-response | B13: 係数から周波数特性を求める。Gain（振幅）とTheta（位相）
A14: io-ding44k1 | B14: 入出力特性。Ding44k1.wavを入力した際の出力
A15: io-sinwave | B15: 入出力特性。サイン波を入力した際の出力
A17: ●その他追記事項
A18: タップ数（次数、係数の数）N=140のFIRフィルタ.（以下にブロック図、差分方程式、伝達関数）
A49: 改訂履歴
A50: 2024/03/11 : version 1.0
A52: by Toshio Iwata at DIGITALFILTER.COM, all rights reserved
A54: 詳しい説明・使用法は弊社サイトhttp://digitalfilter.comの「スマホとEXCELで学ぶ！実践ディジタル信号処理入門」を参考にしてください
A55: 本EXCELシートの無断配布を禁じます（上記サイトからダウンロードして使用してください）
A56: 本EXCELシートはユーザー各自の責任において使用してください

Sheet f-response
A1: freq-base | B1: frequency | C1: omega | D1: FIRの係数 | E1: Areal1 | F1: Aimag1 | G1: Gain [dB] | H1: Theta [rad]
A2: 0 | B2: =A2*README!B$8 -> 0 | C2: =2*3.14159*B2/README!B$4 -> 0 | D2: =1/7 -> 0.1428571429 | G2: =10*LOG(E2^2+F2^2) ->  | H2: =ATAN2(E2, F2) -> 
A3: 1 | B3: =A3*README!B$8 -> 100 | C3: =2*3.14159*B3/README!B$4 -> 0.0142475737 | D3: =1/7 -> 0.1428571429 | G3: =10*LOG(E3^2+F3^2) ->  | H3: =ATAN2(E3, F3) -> 
A4: 2 | B4: =A4*README!B$8 -> 200 | C4: =2*3.14159*B4/README!B$4 -> 0.02849514739 | D4: 0.1428571429
A5: 3 | B5: =A5*README!B$8 -> 300 | C5: =2*3.14159*B5/README!B$4 -> 0.04274272109 | D5: 0.1428571429
A6: 4 | B6: =A6*README!B$8 -> 400 | C6: =2*3.14159*B6/README!B$4 -> 0.05699029478 | D6: 0.1428571429
A7: 5 | B7: =A7*README!B$8 -> 500 | C7: =2*3.14159*B7/README!B$4 -> 0.07123786848 | D7: 0.1428571429
A8: 6 | B8: =A8*README!B$8 -> 600 | C8: =2*3.14159*B8/README!B$4 -> 0.08548544218 | D8: 0.1428571429
A9: 7 | B9: =A9*README!B$8 -> 700 | C9: =2*3.14159*B9/README!B$4 -> 0.09973301587 | D9: 0
A10: 8 | B10: =A10*README!B$8 -> 800 | C10: =2*3.14159*B10/README!B$4 -> 0.1139805896 | D10: 0
A11: 9 | B11: =A11*README!B$8 -> 900 | C11: =2*3.14159*B11/README!B$4 -> 0.1282281633 | D11: 0
A12: 10 | B12: =A12*README!B$8 -> 1000 | C12: =2*3.14159*B12/README!B$4 -> 0.142475737 | D12: 0
A13: 11 | B13: =A13*README!B$8 -> 1100 | C13: =2*3.14159*B13/README!B$4 -> 0.1567233107 | D13: 0
A14: 12 | B14: =A14*README!B$8 -> 1200 | C14: =2*3.14159*B14/README!B$4 -> 0.1709708844 | D14: 0
A15: 13 | B15: =A15*README!B$8 -> 1300 | C15: =2*3.14159*B15/README!B$4 -> 0.185218458 | D15: 0
A16: 14 | B16: =A16*README!B$8 -> 1400 | C16: =2*3.14159*B16/README!B$4 -> 0.1994660317 | D16: 0
A17: 15 | B17: =A17*README!B$8 -> 1500 | C17: =2*3.14159*B17/README!B$4 -> 0.2137136054 | D17: 0
A18: 16 | B18: =A18*README!B$8 -> 1600 | C18: =2*3.14159*B18/README!B$4 -> 0.2279611791 | D18: 0
A19: 17 | B19: =A19*README!B$8 -> 1700 | C19: =2*3.14159*B19/README!B$4 -> 0.2422087528 | D19: 0
A20: 18 | B20: =A20*README!B$8 -> 1800 | C20: =2*3.14159*B20/README!B$4 -> 0.2564563265 | D20: 0 | J20: F特の計算にはVBAを使います（詳しくは弊社サイトhttp://digitalfilter.comの「スマホとEXCELで学ぶ！実践ディジタル信号処理入門」ご参照）
A21: 19 | B21: =A21*README!B$8 -> 1900 | C21: =2*3.14159*B21/README!B$4 -> 0.2707039002 | D21: 0
A22: 20 | B22: =A22*README!B$8 -> 2000 | C22: =2*3.14159*B22/README!B$4 -> 0.2849514739 | D22: 0
A23: 21 | B23: =A23*README!B$8 -> 2100 | C23: =2*3.14159*B23/README!B$4 -> 0.2991990476 | D23: 0
A24: 22 | B24: =A24*README!B$8 -> 2200 | C24: =2*3.14159*B24/README!B$4 -> 0.3134466213 | D24: 0
A25: 23 | B25: =A25*README!B$8 -> 2300 | C25: =2*3.14159*B25/README!B$4 -> 0.327694195 | D25: 0
A26: 24 | B26: =A26*README!B$8 -> 2400 | C26: =2*3.14159*B26/README!B$4 -> 0.3419417687 | D26: 0
A27: 25 | B27: =A27*README!B$8 -> 2500 | C27: =2*3.14159*B27/README!B$4 -> 0.3561893424 | D27: 0
A28: 26 | B28: =A28*README!B$8 -> 2600 | C28: =2*3.14159*B28/README!B$4 -> 0.3704369161 | D28: 0
A29: 27 | B29: =A29*README!B$8 -> 2700 | C29: =2*3.14159*B29/README!B$4 -> 0.3846844898 | D29: 0
A30: 28 | B30: =A30*README!B$8 -> 2800 | C30: =2*3.14159*B30/README!B$4 -> 0.3989320635 | D30: 0
A31: 29 | B31: =A31*README!B$8 -> 2900 | C31: =2*3.14159*B31/README!B$4 -> 0.4131796372 | D31: 0
A32: 30 | B32: =A32*README!B$8 -> 3000 | C32: =2*3.14159*B32/README!B$4 -> 0.4274272109 | D32: 0
A33: 31 | B33: =A33*README!B$8 -> 3100 | C33: =2*3.14159*B33/README!B$4 -> 0.4416747846 | D33: 0
A34: 32 | B34: =A34*README!B$8 -> 3200 | C34: =2*3.14159*B34/README!B$4 -> 0.4559223583 | D34: 0
A35: 33 | B35: =A35*README!B$8 -> 3300 | C35: =2*3.14159*B35/README!B$4 -> 0.470169932 | D35: 0
A36: 34 | B36: =A36*README!B$8 -> 3400 | C36: =2*3.14159*B36/README!B$4 -> 0.4844175057 | D36: 0
A37: 35 | B37: =A37*README!B$8 -> 3500 | C37: =2*3.14159*B37/README!B$4 -> 0.4986650794 | D37: 0
A38: 36 | B38: =A38*README!B$8 -> 3600 | C38: =2*3.14159*B38/README!B$4 -> 0.5129126531 | D38: 0
A39: 37 | B39: =A39*README!B$8 -> 3700 | C39: =2*3.14159*B39/README!B$4 -> 0.5271602268 | D39: 0
A40: 38 | B40: =A40*README!B$8 -> 3800 | C40: =2*3.14159*B40/README!B$4 -> 0.5414078005 | D40: 0
A41: 39 | B41: =A41*README!B$8 -> 3900 | C41: =2*3.14159*B41/README!B$4 -> 0.5556553741 | D41: 0
A42: 40 | B42: =A42*README!B$8 -> 4000 | C42: =2*3.14159*B42/README!B$4 -> 0.5699029478 | D42: 0
A43: 41 | B43: =A43*README!B$8 -> 4100 | C43: =2*3.14159*B43/README!B$4 -> 0.5841505215 | D43: 0
A44: 42 | B44: =A44*README!B$8 -> 4200 | C44: =2*3.14159*B44/README!B$4 -> 0.5983980952 | D44: 0
A45: 43 | B45: =A45*README!B$8 -> 4300 | C45: =2*3.14159*B45/README!B$4 -> 0.6126456689 | D45: 0
A46: 44 | B46: =A46*README!B$8 -> 4400 | C46: =2*3.14159*B46/README!B$4 -> 0.6268932426 | D46: 0
A47: 45 | B47: =A47*README!B$8 -> 4500 | C47: =2*3.14159*B47/README!B$4 -> 0.6411408163 | D47: 0
A48: 46 | B48: =A48*README!B$8 -> 4600 | C48: =2*3.14159*B48/README!B$4 -> 0.65538839 | D48: 0
A49: 47 | B49: =A49*README!B$8 -> 4700 | C49: =2*3.14159*B49/README!B$4 -> 0.6696359637 | D49: 0
A50: 48 | B50: =A50*README!B$8 -> 4800 | C50: =2*3.14159*B50/README!B$4 -> 0.6838835374 | D50: 0
A51: 49 | B51: =A51*README!B$8 -> 4900 | C51: =2*3.14159*B51/README!B$4 -> 0.6981311111 | D51: 0
A52: 50 | B52: =A52*README!B$8 -> 5000 | C52: =2*3.14159*B52/README!B$4 -> 0.7123786848 | D52: 0
A53: 51 | B53: =A53*README!B$8 -> 5100 | C53: =2*3.14159*B53/README!B$4 -> 0.7266262585 | D53: 0
A54: 52 | B54: =A54*README!B$8 -> 5200 | C54: =2*3.14159*B54/README!B$4 -> 0.7408738322 | D54: 0
A55: 53 | B55: =A55*README!B$8 -> 5300 | C55: =2*3.14159*B55/README!B$4 -> 0.7551214059 | D55: 0
A56: 54 | B56: =A56*README!B$8 -> 5400 | C56: =2*3.14159*B56/README!B$4 -> 0.7693689796 | D56: 0
A57: 55 | B57: =A57*README!B$8 -> 5500 | C57: =2*3.14159*B57/README!B$4 -> 0.7836165533 | D57: 0
A58: 56 | B58: =A58*README!B$8 -> 5600 | C58: =2*3.14159*B58/README!B$4 -> 0.797864127 | D58: 0
A59: 57 | B59: =A59*README!B$8 -> 5700 | C59: =2*3.14159*B59/README!B$4 -> 0.8121117007 | D59: 0
A60: 58 | B60: =A60*README!B$8 -> 5800 | C60: =2*3.14159*B60/README!B$4 -> 0.8263592744 | D60: 0
A61: 59 | B61: =A61*README!B$8 -> 5900 | C61: =2*3.14159*B61/README!B$4 -> 0.8406068481 | D61: 0
A62: 60 | B62: =A62*README!B$8 -> 6000 | C62: =2*3.14159*B62/README!B$4 -> 0.8548544218 | D62: 0
A63: 61 | B63: =A63*README!B$8 -> 6100 | C63: =2*3.14159*B63/README!B$4 -> 0.8691019955 | D63: 0
A64: 62 | B64: =A64*README!B$8 -> 6200 | C64: =2*3.14159*B64/README!B$4 -> 0.8833495692 | D64: 0
A65: 63 | B65: =A65*README!B$8 -> 6300 | C65: =2*3.14159*B65/README!B$4 -> 0.8975971429 | D65: 0
A66: 64 | B66: =A66*README!B$8 -> 6400 | C66: =2*3.14159*B66/README!B$4 -> 0.9118447166 | D66: 0
A67: 65 | B67: =A67*README!B$8 -> 6500 | C67: =2*3.14159*B67/README!B$4 -> 0.9260922902 | D67: 0 | G67: =10*LOG(E67^2+F67^2) ->  | H67: =ATAN2(E67, F67) -> 
A68: 66 | B68: =A68*README!B$8 -> 6600 | C68: =2*3.14159*B68/README!B$4 -> 0.9403398639 | D68: 0
A69: 67 | B69: =A69*README!B$8 -> 6700 | C69: =2*3.14159*B69/README!B$4 -> 0.9545874376 | D69: 0
A70: 68 | B70: =A70*README!B$8 -> 6800 | C70: =2*3.14159*B70/README!B$4 -> 0.9688350113 | D70: 0
A71: 69 | B71: =A71*README!B$8 -> 6900 | C71: =2*3.14159*B71/README!B$4 -> 0.983082585 | D71: 0
A72: 70 | B72: =A72*README!B$8 -> 7000 | C72: =2*3.14159*B72/README!B$4 -> 0.9973301587 | D72: 0
A73: 71 | B73: =A73*README!B$8 -> 7100 | C73: =2*3.14159*B73/README!B$4 -> 1.011577732 | D73: 0
A74: 72 | B74: =A74*README!B$8 -> 7200 | C74: =2*3.14159*B74/README!B$4 -> 1.025825306 | D74: 0
A75: 73 | B75: =A75*README!B$8 -> 7300 | C75: =2*3.14159*B75/README!B$4 -> 1.04007288 | D75: 0
A76: 74 | B76: =A76*README!B$8 -> 7400 | C76: =2*3.14159*B76/README!B$4 -> 1.054320454 | D76: 0
A77: 75 | B77: =A77*README!B$8 -> 7500 | C77: =2*3.14159*B77/README!B$4 -> 1.068568027 | D77: 0
A78: 76 | B78: =A78*README!B$8 -> 7600 | C78: =2*3.14159*B78/README!B$4 -> 1.082815601 | D78: 0
A79: 77 | B79: =A79*README!B$8 -> 7700 | C79: =2*3.14159*B79/README!B$4 -> 1.097063175 | D79: 0
A80: 78 | B80: =A80*README!B$8 -> 7800 | C80: =2*3.14159*B80/README!B$4 -> 1.111310748 | D80: 0
A81: 79 | B81: =A81*README!B$8 -> 7900 | C81: =2*3.14159*B81/README!B$4 -> 1.125558322 | D81: 0
A82: 80 | B82: =A82*README!B$8 -> 8000 | C82: =2*3.14159*B82/README!B$4 -> 1.139805896 | D82: 0
A83: 81 | B83: =A83*README!B$8 -> 8100 | C83: =2*3.14159*B83/README!B$4 -> 1.154053469 | D83: 0
A84: 82 | B84: =A84*README!B$8 -> 8200 | C84: =2*3.14159*B84/README!B$4 -> 1.168301043 | D84: 0
A85: 83 | B85: =A85*README!B$8 -> 8300 | C85: =2*3.14159*B85/README!B$4 -> 1.182548617 | D85: 0
A86: 84 | B86: =A86*README!B$8 -> 8400 | C86: =2*3.14159*B86/README!B$4 -> 1.19679619 | D86: 0
A87: 85 | B87: =A87*README!B$8 -> 8500 | C87: =2*3.14159*B87/README!B$4 -> 1.211043764 | D87: 0
A88: 86 | B88: =A88*README!B$8 -> 8600 | C88: =2*3.14159*B88/README!B$4 -> 1.225291338 | D88: 0
A89: 87 | B89: =A89*README!B$8 -> 8700 | C89: =2*3.14159*B89/README!B$4 -> 1.239538912 | D89: 0
A90: 88 | B90: =A90*README!B$8 -> 8800 | C90: =2*3.14159*B90/README!B$4 -> 1.253786485 | D90: 0
A91: 89 | B91: =A91*README!B$8 -> 8900 | C91: =2*3.14159*B91/README!B$4 -> 1.268034059 | D91: 0
A92: 90 | B92: =A92*README!B$8 -> 9000 | C92: =2*3.14159*B92/README!B$4 -> 1.282281633 | D92: 0
A93: 91 | B93: =A93*README!B$8 -> 9100 | C93: =2*3.14159*B93/README!B$4 -> 1.296529206 | D93: 0
A94: 92 | B94: =A94*README!B$8 -> 9200 | C94: =2*3.14159*B94/README!B$4 -> 1.31077678 | D94: 0
A95: 93 | B95: =A95*README!B$8 -> 9300 | C95: =2*3.14159*B95/README!B$4 -> 1.325024354 | D95: 0
A96: 94 | B96: =A96*README!B$8 -> 9400 | C96: =2*3.14159*B96/README!B$4 -> 1.339271927 | D96: 0
A97: 95 | B97: =A97*README!B$8 -> 9500 | C97: =2*3.14159*B97/README!B$4 -> 1.353519501 | D97: 0
A98: 96 | B98: =A98*README!B$8 -> 9600 | C98: =2*3.14159*B98/README!B$4 -> 1.367767075 | D98: 0
A99: 97 | B99: =A99*README!B$8 -> 9700 | C99: =2*3.14159*B99/README!B$4 -> 1.382014649 | D99: 0
A100: 98 | B100: =A100*README!B$8 -> 9800 | C100: =2*3.14159*B100/README!B$4 -> 1.396262222 | D100: 0
A101: 99 | B101: =A101*README!B$8 -> 9900 | C101: =2*3.14159*B101/README!B$4 -> 1.410509796 | D101: 0
A102: 100 | B102: =A102*README!B$8 -> 10000 | C102: =2*3.14159*B102/README!B$4 -> 1.42475737 | D102: 0
A103: 101 | B103: =A103*README!B$8 -> 10100 | C103: =2*3.14159*B103/README!B$4 -> 1.439004943 | D103: 0
A104: 102 | B104: =A104*README!B$8 -> 10200 | C104: =2*3.14159*B104/README!B$4 -> 1.453252517 | D104: 0
A105: 103 | B105: =A105*README!B$8 -> 10300 | C105: =2*3.14159*B105/README!B$4 -> 1.467500091 | D105: 0
A106: 104 | B106: =A106*README!B$8 -> 10400 | C106: =2*3.14159*B106/README!B$4 -> 1.481747664 | D106: 0
A107: 105 | B107: =A107*README!B$8 -> 10500 | C107: =2*3.14159*B107/README!B$4 -> 1.495995238 | D107: 0
A108: 106 | B108: =A108*README!B$8 -> 10600 | C108: =2*3.14159*B108/README!B$4 -> 1.510242812 | D108: 0
A109: 107 | B109: =A109*README!B$8 -> 10700 | C109: =2*3.14159*B109/README!B$4 -> 1.524490385 | D109: 0
A110: 108 | B110: =A110*README!B$8 -> 10800 | C110: =2*3.14159*B110/README!B$4 -> 1.538737959 | D110: 0
A111: 109 | B111: =A111*README!B$8 -> 10900 | C111: =2*3.14159*B111/README!B$4 -> 1.552985533 | D111: 0
A112: 110 | B112: =A112*README!B$8 -> 11000 | C112: =2*3.14159*B112/README!B$4 -> 1.567233107 | D112: 0
A113: 111 | B113: =A113*README!B$8 -> 11100 | C113: =2*3.14159*B113/README!B$4 -> 1.58148068 | D113: 0
A114: 112 | B114: =A114*README!B$8 -> 11200 | C114: =2*3.14159*B114/README!B$4 -> 1.595728254 | D114: 0
A115: 113 | B115: =A115*README!B$8 -> 11300 | C115: =2*3.14159*B115/README!B$4 -> 1.609975828 | D115: 0
A116: 114 | B116: =A116*README!B$8 -> 11400 | C116: =2*3.14159*B116/README!B$4 -> 1.624223401 | D116: 0
A117: 115 | B117: =A117*README!B$8 -> 11500 | C117: =2*3.14159*B117/README!B$4 -> 1.638470975 | D117: 0
A118: 116 | B118: =A118*README!B$8 -> 11600 | C118: =2*3.14159*B118/README!B$4 -> 1.652718549 | D118: 0
A119: 117 | B119: =A119*README!B$8 -> 11700 | C119: =2*3.14159*B119/README!B$4 -> 1.666966122 | D119: 0
A120: 118 | B120: =A120*README!B$8 -> 11800 | C120: =2*3.14159*B120/README!B$4 -> 1.681213696 | D120: 0
A121: 119 | B121: =A121*README!B$8 -> 11900 | C121: =2*3.14159*B121/README!B$4 -> 1.69546127 | D121: 0
A122: 120 | B122: =A122*README!B$8 -> 12000 | C122: =2*3.14159*B122/README!B$4 -> 1.709708844 | D122: 0
A123: 121 | B123: =A123*README!B$8 -> 12100 | C123: =2*3.14159*B123/README!B$4 -> 1.723956417 | D123: 0
A124: 122 | B124: =A124*README!B$8 -> 12200 | C124: =2*3.14159*B124/README!B$4 -> 1.738203991 | D124: 0
A125: 123 | B125: =A125*README!B$8 -> 12300 | C125: =2*3.14159*B125/README!B$4 -> 1.752451565 | D125: 0
A126: 124 | B126: =A126*README!B$8 -> 12400 | C126: =2*3.14159*B126/README!B$4 -> 1.766699138 | D126: 0
A127: 125 | B127: =A127*README!B$8 -> 12500 | C127: =2*3.14159*B127/README!B$4 -> 1.780946712 | D127: 0
A128: 126 | B128: =A128*README!B$8 -> 12600 | C128: =2*3.14159*B128/README!B$4 -> 1.795194286 | D128: 0
A129: 127 | B129: =A129*README!B$8 -> 12700 | C129: =2*3.14159*B129/README!B$4 -> 1.809441859 | D129: 0
A130: 128 | B130: =A130*README!B$8 -> 12800 | C130: =2*3.14159*B130/README!B$4 -> 1.823689433 | D130: 0
A131: 129 | B131: =A131*README!B$8 -> 12900 | C131: =2*3.14159*B131/README!B$4 -> 1.837937007 | D131: 0 | G131: =10*LOG(E131^2+F131^2) ->  | H131: =ATAN2(E131, F131) -> 
A132: 130 | B132: =A132*README!B$8 -> 13000 | C132: =2*3.14159*B132/README!B$4 -> 1.85218458 | D132: 0
A133: 131 | B133: =A133*README!B$8 -> 13100 | C133: =2*3.14159*B133/README!B$4 -> 1.866432154 | D133: 0
A134: 132 | B134: =A134*README!B$8 -> 13200 | C134: =2*3.14159*B134/README!B$4 -> 1.880679728 | D134: 0
A135: 133 | B135: =A135*README!B$8 -> 13300 | C135: =2*3.14159*B135/README!B$4 -> 1.894927302 | D135: 0
A136: 134 | B136: =A136*README!B$8 -> 13400 | C136: =2*3.14159*B136/README!B$4 -> 1.909174875 | D136: 0
A137: 135 | B137: =A137*README!B$8 -> 13500 | C137: =2*3.14159*B137/README!B$4 -> 1.923422449 | D137: 0
A138: 136 | B138: =A138*README!B$8 -> 13600 | C138: =2*3.14159*B138/README!B$4 -> 1.937670023 | D138: 0
A139: 137 | B139: =A139*README!B$8 -> 13700 | C139: =2*3.14159*B139/README!B$4 -> 1.951917596 | D139: 0
A140: 138 | B140: =A140*README!B$8 -> 13800 | C140: =2*3.14159*B140/README!B$4 -> 1.96616517 | D140: 0
A141: 139 | B141: =A141*README!B$8 -> 13900 | C141: =2*3.14159*B141/README!B$4 -> 1.980412744 | D141: 0
A142: 140 | B142: =A142*README!B$8 -> 14000 | C142: =2*3.14159*B142/README!B$4 -> 1.994660317
A143: 141 | B143: =A143*README!B$8 -> 14100 | C143: =2*3.14159*B143/README!B$4 -> 2.008907891
A144: 142 | B144: =A144*README!B$8 -> 14200 | C144: =2*3.14159*B144/README!B$4 -> 2.023155465
A145: 143 | B145: =A145*README!B$8 -> 14300 | C145: =2*3.14159*B145/README!B$4 -> 2.037403039
A146: 144 | B146: =A146*README!B$8 -> 14400 | C146: =2*3.14159*B146/README!B$4 -> 2.051650612
A147: 145 | B147: =A147*README!B$8 -> 14500 | C147: =2*3.14159*B147/README!B$4 -> 2.065898186
A148: 146 | B148: =A148*README!B$8 -> 14600 | C148: =2*3.14159*B148/README!B$4 -> 2.08014576
A149: 147 | B149: =A149*README!B$8 -> 14700 | C149: =2*3.14159*B149/README!B$4 -> 2.094393333
A150: 148 | B150: =A150*README!B$8 -> 14800 | C150: =2*3.14159*B150/README!B$4 -> 2.108640907
A151: 149 | B151: =A151*README!B$8 -> 14900 | C151: =2*3.14159*B151/README!B$4 -> 2.122888481

Sheet io-ding44k1
A1: index | B1: Time | C1: x[n] | D1: y[n]
A2: 0 | B2: =A2/README!B$4 -> 0 | C2: 0
A3: 1 | B3: =A3/README!B$4 -> 2.267573696e-05 | C3: 0
A4: 2 | B4: =A4/README!B$4 -> 4.535147392e-05 | C4: 0
A5: 3 | B5: =A5/README!B$4 -> 6.802721088e-05 | C5: 0
A6: 4 | B6: =A6/README!B$4 -> 9.070294785e-05 | C6: 0
A7: 5 | B7: =A7/README!B$4 -> 0.0001133786848 | C7: 0
A8: 6 | B8: =A8/README!B$4 -> 0.0001360544218 | C8: 0
A9: 7 | B9: =A9/README!B$4 -> 0.0001587301587 | C9: 0
A10: 8 | B10: =A10/README!B$4 -> 0.0001814058957 | C10: 0
A11: 9 | B11: =A11/README!B$4 -> 0.0002040816327 | C11: 0
A12: 10 | B12: =A12/README!B$4 -> 0.0002267573696 | C12: 1
A13: 11 | B13: =A13/README!B$4 -> 0.0002494331066 | C13: 0
A14: 12 | B14: =A14/README!B$4 -> 0.0002721088435 | C14: -4
A15: 13 | B15: =A15/README!B$4 -> 0.0002947845805 | C15: -7
A16: 14 | B16: =A16/README!B$4 -> 0.0003174603175 | C16: -6
A17: 15 | B17: =A17/README!B$4 -> 0.0003401360544 | C17: -1
A18: 16 | B18: =A18/README!B$4 -> 0.0003628117914 | C18: 3
A19: 17 | B19: =A19/README!B$4 -> 0.0003854875283 | C19: 5 | F19: 出力の計算にはVBAを使います（詳しくは弊社サイトhttp://digitalfilter.comの「スマホとEXCELで学ぶ！実践ディジタル信号処理入門」ご参照）
A20: 18 | B20: =A20/README!B$4 -> 0.0004081632653 | C20: 5
A21: 19 | B21: =A21/README!B$4 -> 0.0004308390023 | C21: 4
A22: 20 | B22: =A22/README!B$4 -> 0.0004535147392 | C22: 4
A23: 21 | B23: =A23/README!B$4 -> 0.0004761904762 | C23: 3
A24: 22 | B24: =A24/README!B$4 -> 0.0004988662132 | C24: 1
A25: 23 | B25: =A25/README!B$4 -> 0.0005215419501 | C25: 0
A26: 24 | B26: =A26/README!B$4 -> 0.0005442176871 | C26: 1
A27: 25 | B27: =A27/README!B$4 -> 0.000566893424 | C27: 2
A28: 26 | B28: =A28/README!B$4 -> 0.000589569161 | C28: 1
A29: 27 | B29: =A29/README!B$4 -> 0.000612244898 | C29: -1
A30: 28 | B30: =A30/README!B$4 -> 0.0006349206349 | C30: -3
A31: 29 | B31: =A31/README!B$4 -> 0.0006575963719 | C31: -3
A32: 30 | B32: =A32/README!B$4 -> 0.0006802721088 | C32: -3
A33: 31 | B33: =A33/README!B$4 -> 0.0007029478458 | C33: -5
A34: 32 | B34: =A34/README!B$4 -> 0.0007256235828 | C34: -6
A35: 33 | B35: =A35/README!B$4 -> 0.0007482993197 | C35: -6
A36: 34 | B36: =A36/README!B$4 -> 0.0007709750567 | C36: -6
A37: 35 | B37: =A37/README!B$4 -> 0.0007936507937 | C37: -7
A38: 36 | B38: =A38/README!B$4 -> 0.0008163265306 | C38: -10
A39: 37 | B39: =A39/README!B$4 -> 0.0008390022676 | C39: -11
A40: 38 | B40: =A40/README!B$4 -> 0.0008616780045 | C40: -10
A41: 39 | B41: =A41/README!B$4 -> 0.0008843537415 | C41: -8
A42: 40 | B42: =A42/README!B$4 -> 0.0009070294785 | C42: -8
A43: 41 | B43: =A43/README!B$4 -> 0.0009297052154 | C43: -10
A44: 42 | B44: =A44/README!B$4 -> 0.0009523809524 | C44: -10
A45: 43 | B45: =A45/README!B$4 -> 0.0009750566893 | C45: -7
A46: 44 | B46: =A46/README!B$4 -> 0.0009977324263 | C46: -7
A47: 45 | B47: =A47/README!B$4 -> 0.001020408163 | C47: -9
A48: 46 | B48: =A48/README!B$4 -> 0.0010430839 | C48: -9
A49: 47 | B49: =A49/README!B$4 -> 0.001065759637 | C49: -4
A50: 48 | B50: =A50/README!B$4 -> 0.001088435374 | C50: 0
A51: 49 | B51: =A51/README!B$4 -> 0.001111111111 | C51: 0
A52: 50 | B52: =A52/README!B$4 -> 0.001133786848 | C52: -2
A53: 51 | B53: =A53/README!B$4 -> 0.001156462585 | C53: -2
A54: 52 | B54: =A54/README!B$4 -> 0.001179138322 | C54: 0
A55: 53 | B55: =A55/README!B$4 -> 0.001201814059 | C55: 2
A56: 54 | B56: =A56/README!B$4 -> 0.001224489796 | C56: 4
A57: 55 | B57: =A57/README!B$4 -> 0.001247165533 | C57: 5
A58: 56 | B58: =A58/README!B$4 -> 0.00126984127 | C58: 6
A59: 57 | B59: =A59/README!B$4 -> 0.001292517007 | C59: 6
A60: 58 | B60: =A60/README!B$4 -> 0.001315192744 | C60: 5
A61: 59 | B61: =A61/README!B$4 -> 0.001337868481 | C61: 6
A62: 60 | B62: =A62/README!B$4 -> 0.001360544218 | C62: 8
A63: 61 | B63: =A63/README!B$4 -> 0.001383219955 | C63: 8
A64: 62 | B64: =A64/README!B$4 -> 0.001405895692 | C64: 8
A65: 63 | B65: =A65/README!B$4 -> 0.001428571429 | C65: 9
A66: 64 | B66: =A66/README!B$4 -> 0.001451247166 | C66: 12
A67: 65 | B67: =A67/README!B$4 -> 0.001473922902 | C67: 14
A68: 66 | B68: =A68/README!B$4 -> 0.001496598639 | C68: 11
A69: 67 | B69: =A69/README!B$4 -> 0.001519274376 | C69: 7
A70: 68 | B70: =A70/README!B$4 -> 0.001541950113 | C70: 8
A71: 69 | B71: =A71/README!B$4 -> 0.00156462585 | C71: 12
A72: 70 | B72: =A72/README!B$4 -> 0.001587301587 | C72: 14
A73: 71 | B73: =A73/README!B$4 -> 0.001609977324 | C73: 11
A74: 72 | B74: =A74/README!B$4 -> 0.001632653061 | C74: 8
A75: 73 | B75: =A75/README!B$4 -> 0.001655328798 | C75: 9
A76: 74 | B76: =A76/README!B$4 -> 0.001678004535 | C76: 11
A77: 75 | B77: =A77/README!B$4 -> 0.001700680272 | C77: 9
A78: 76 | B78: =A78/README!B$4 -> 0.001723356009 | C78: 8
A79: 77 | B79: =A79/README!B$4 -> 0.001746031746 | C79: 8
A80: 78 | B80: =A80/README!B$4 -> 0.001768707483 | C80: 9
A81: 79 | B81: =A81/README!B$4 -> 0.00179138322 | C81: 6
A82: 80 | B82: =A82/README!B$4 -> 0.001814058957 | C82: 3
A83: 81 | B83: =A83/README!B$4 -> 0.001836734694 | C83: 4
A84: 82 | B84: =A84/README!B$4 -> 0.001859410431 | C84: 7
A85: 83 | B85: =A85/README!B$4 -> 0.001882086168 | C85: 5
A86: 84 | B86: =A86/README!B$4 -> 0.001904761905 | C86: 0
A87: 85 | B87: =A87/README!B$4 -> 0.001927437642 | C87: -3
A88: 86 | B88: =A88/README!B$4 -> 0.001950113379 | C88: 0
A89: 87 | B89: =A89/README!B$4 -> 0.001972789116 | C89: 4
A90: 88 | B90: =A90/README!B$4 -> 0.001995464853 | C90: 1
A91: 89 | B91: =A91/README!B$4 -> 0.00201814059 | C91: -4
A92: 90 | B92: =A92/README!B$4 -> 0.002040816327 | C92: -8
A93: 91 | B93: =A93/README!B$4 -> 0.002063492063 | C93: -5
A94: 92 | B94: =A94/README!B$4 -> 0.0020861678 | C94: -3
A95: 93 | B95: =A95/README!B$4 -> 0.002108843537 | C95: -5
A96: 94 | B96: =A96/README!B$4 -> 0.002131519274 | C96: -6
A97: 95 | B97: =A97/README!B$4 -> 0.002154195011 | C97: -5
A98: 96 | B98: =A98/README!B$4 -> 0.002176870748 | C98: -5
A99: 97 | B99: =A99/README!B$4 -> 0.002199546485 | C99: -6
A100: 98 | B100: =A100/README!B$4 -> 0.002222222222 | C100: -6
A101: 99 | B101: =A101/README!B$4 -> 0.002244897959 | C101: -6
A102: 100 | B102: =A102/README!B$4 -> 0.002267573696 | C102: -7
A103: 101 | B103: =A103/README!B$4 -> 0.002290249433 | C103: -11
A104: 102 | B104: =A104/README!B$4 -> 0.00231292517 | C104: -12
A105: 103 | B105: =A105/README!B$4 -> 0.002335600907 | C105: -9
A106: 104 | B106: =A106/README!B$4 -> 0.002358276644 | C106: -7
A107: 105 | B107: =A107/README!B$4 -> 0.002380952381 | C107: -10
A108: 106 | B108: =A108/README!B$4 -> 0.002403628118 | C108: -13
A109: 107 | B109: =A109/README!B$4 -> 0.002426303855 | C109: -11
A110: 108 | B110: =A110/README!B$4 -> 0.002448979592 | C110: -6
A111: 109 | B111: =A111/README!B$4 -> 0.002471655329 | C111: -5
A112: 110 | B112: =A112/README!B$4 -> 0.002494331066 | C112: -8
A113: 111 | B113: =A113/README!B$4 -> 0.002517006803 | C113: -7
A114: 112 | B114: =A114/README!B$4 -> 0.00253968254 | C114: -1
A115: 113 | B115: =A115/README!B$4 -> 0.002562358277 | C115: 0
A116: 114 | B116: =A116/README!B$4 -> 0.002585034014 | C116: -5
A117: 115 | B117: =A117/README!B$4 -> 0.002607709751 | C117: -6
A118: 116 | B118: =A118/README!B$4 -> 0.002630385488 | C118: 0
A119: 117 | B119: =A119/README!B$4 -> 0.002653061224 | C119: 7
A120: 118 | B120: =A120/README!B$4 -> 0.002675736961 | C120: 5
A121: 119 | B121: =A121/README!B$4 -> 0.002698412698 | C121: 0
A122: 120 | B122: =A122/README!B$4 -> 0.002721088435 | C122: 3
A123: 121 | B123: =A123/README!B$4 -> 0.002743764172 | C123: 10
A124: 122 | B124: =A124/README!B$4 -> 0.002766439909 | C124: 10
A125: 123 | B125: =A125/README!B$4 -> 0.002789115646 | C125: 4
A126: 124 | B126: =A126/README!B$4 -> 0.002811791383 | C126: 3
A127: 125 | B127: =A127/README!B$4 -> 0.00283446712 | C127: 10
A128: 126 | B128: =A128/README!B$4 -> 0.002857142857 | C128: 15
A129: 127 | B129: =A129/README!B$4 -> 0.002879818594 | C129: 12
A130: 128 | B130: =A130/README!B$4 -> 0.002902494331 | C130: 7
A131: 129 | B131: =A131/README!B$4 -> 0.002925170068 | C131: 8
A132: 130 | B132: =A132/README!B$4 -> 0.002947845805 | C132: 13
A133: 131 | B133: =A133/README!B$4 -> 0.002970521542 | C133: 14
A134: 132 | B134: =A134/README!B$4 -> 0.002993197279 | C134: 10
A135: 133 | B135: =A135/README!B$4 -> 0.003015873016 | C135: 9
A136: 134 | B136: =A136/README!B$4 -> 0.003038548753 | C136: 12
A137: 135 | B137: =A137/README!B$4 -> 0.00306122449 | C137: 13
A138: 136 | B138: =A138/README!B$4 -> 0.003083900227 | C138: 10
A139: 137 | B139: =A139/README!B$4 -> 0.003106575964 | C139: 7
A140: 138 | B140: =A140/README!B$4 -> 0.003129251701 | C140: 8
A141: 139 | B141: =A141/README!B$4 -> 0.003151927438 | C141: 10
A142: 140 | B142: =A142/README!B$4 -> 0.003174603175 | C142: 10
A143: 141 | B143: =A143/README!B$4 -> 0.003197278912 | C143: 9
A144: 142 | B144: =A144/README!B$4 -> 0.003219954649 | C144: 7
A145: 143 | B145: =A145/README!B$4 -> 0.003242630385 | C145: 6
A146: 144 | B146: =A146/README!B$4 -> 0.003265306122 | C146: 5
A147: 145 | B147: =A147/README!B$4 -> 0.003287981859 | C147: 5
A148: 146 | B148: =A148/README!B$4 -> 0.003310657596 | C148: 4
A149: 147 | B149: =A149/README!B$4 -> 0.003333333333 | C149: 4
A150: 148 | B150: =A150/README!B$4 -> 0.00335600907 | C150: 4
A151: 149 | B151: =A151/README!B$4 -> 0.003378684807 | C151: 4
A152: 150 | B152: =A152/README!B$4 -> 0.003401360544 | C152: 2
A153: 151 | B153: =A153/README!B$4 -> 0.003424036281 | C153: -1
A154: 152 | B154: =A154/README!B$4 -> 0.003446712018 | C154: -4
A155: 153 | B155: =A155/README!B$4 -> 0.003469387755 | C155: -4
A156: 154 | B156: =A156/README!B$4 -> 0.003492063492 | C156: -2
A157: 155 | B157: =A157/README!B$4 -> 0.003514739229 | C157: -2
A158: 156 | B158: =A158/README!B$4 -> 0.003537414966 | C158: -4
A159: 157 | B159: =A159/README!B$4 -> 0.003560090703 | C159: -5
A160: 158 | B160: =A160/README!B$4 -> 0.00358276644 | C160: -5
A161: 159 | B161: =A161/README!B$4 -> 0.003605442177 | C161: -6
A162: 160 | B162: =A162/README!B$4 -> 0.003628117914 | C162: -9
A163: 161 | B163: =A163/README!B$4 -> 0.003650793651 | C163: -8
A164: 162 | B164: =A164/README!B$4 -> 0.003673469388 | C164: -4
A165: 163 | B165: =A165/README!B$4 -> 0.003696145125 | C165: -1
A166: 164 | B166: =A166/README!B$4 -> 0.003718820862 | C166: -4
A167: 165 | B167: =A167/README!B$4 -> 0.003741496599 | C167: -7
A168: 166 | B168: =A168/README!B$4 -> 0.003764172336 | C168: -7
A169: 167 | B169: =A169/README!B$4 -> 0.003786848073 | C169: -5
A170: 168 | B170: =A170/README!B$4 -> 0.00380952381 | C170: -6
A171: 169 | B171: =A171/README!B$4 -> 0.003832199546 | C171: -7
A172: 170 | B172: =A172/README!B$4 -> 0.003854875283 | C172: -4
A173: 171 | B173: =A173/README!B$4 -> 0.00387755102 | C173: 0
A174: 172 | B174: =A174/README!B$4 -> 0.003900226757 | C174: 0
A175: 173 | B175: =A175/README!B$4 -> 0.003922902494 | C175: -5
A176: 174 | B176: =A176/README!B$4 -> 0.003945578231 | C176: -6
A177: 175 | B177: =A177/README!B$4 -> 0.003968253968 | C177: -1
A178: 176 | B178: =A178/README!B$4 -> 0.003990929705 | C178: 3
A179: 177 | B179: =A179/README!B$4 -> 0.004013605442 | C179: 2
A180: 178 | B180: =A180/README!B$4 -> 0.004036281179 | C180: 0
A181: 179 | B181: =A181/README!B$4 -> 0.004058956916 | C181: 3
A182: 180 | B182: =A182/README!B$4 -> 0.004081632653 | C182: 8
A183: 181 | B183: =A183/README!B$4 -> 0.00410430839 | C183: 7
A184: 182 | B184: =A184/README!B$4 -> 0.004126984127 | C184: 2
A185: 183 | B185: =A185/README!B$4 -> 0.004149659864 | C185: 1
A186: 184 | B186: =A186/README!B$4 -> 0.004172335601 | C186: 7
A187: 185 | B187: =A187/README!B$4 -> 0.004195011338 | C187: 12
A188: 186 | B188: =A188/README!B$4 -> 0.004217687075 | C188: 9
A189: 187 | B189: =A189/README!B$4 -> 0.004240362812 | C189: 3
A190: 188 | B190: =A190/README!B$4 -> 0.004263038549 | C190: 2
A191: 189 | B191: =A191/README!B$4 -> 0.004285714286 | C191: 6
A192: 190 | B192: =A192/README!B$4 -> 0.004308390023 | C192: 6
A193: 191 | B193: =A193/README!B$4 -> 0.00433106576 | C193: 0
A194: 192 | B194: =A194/README!B$4 -> 0.004353741497 | C194: -4
A195: 193 | B195: =A195/README!B$4 -> 0.004376417234 | C195: 0
A196: 194 | B196: =A196/README!B$4 -> 0.004399092971 | C196: 7
A197: 195 | B197: =A197/README!B$4 -> 0.004421768707 | C197: 5
A198: 196 | B198: =A198/README!B$4 -> 0.004444444444 | C198: -4
A199: 197 | B199: =A199/README!B$4 -> 0.004467120181 | C199: -9
A200: 198 | B200: =A200/README!B$4 -> 0.004489795918 | C200: -3
... 4300 more rows

Sheet io-sinwave
A1: index | B1: Time | C1: x1[n] | D1: x2[n] | E1: x3[n] | F1: x[n] | G1: y[n]
A2: 0 | B2: =A2/README!B$4 -> 0 | C2: =SIN(2*PI()*B2*README!B$5) -> 0 | D2: =SIN(2*PI()*B2*README!B$6) -> 0 | E2: =SIN(2*PI()*B2*README!B$7) -> 0 | F2: =C2+D2+E2 -> 0
A3: 1 | B3: =A3/README!B$4 -> 2.267573696e-05 | C3: =SIN(2*PI()*B3*README!B$5) -> 0.141994318 | D3: =SIN(2*PI()*B3*README!B$6) -> 0.5395507432 | E3: =SIN(2*PI()*B3*README!B$7) -> 0.8400259232 | F3: =C3+D3+E3 -> 1.521570984
A4: 2 | B4: =A4/README!B$4 -> 4.535147392e-05 | C4: =SIN(2*PI()*B4*README!B$5) -> 0.2811111133 | D4: =SIN(2*PI()*B4*README!B$6) -> 0.9085528243 | E4: =SIN(2*PI()*B4*README!B$7) -> 0.9115058523 | F4: 2.10116979
A5: 3 | B5: =A5/README!B$4 -> 6.802721088e-05 | C5: =SIN(2*PI()*B5*README!B$5) -> 0.4145311767 | D5: =SIN(2*PI()*B5*README!B$6) -> 0.9903669615 | E5: =SIN(2*PI()*B5*README!B$7) -> 0.1490422662 | F5: 1.553940404
A6: 4 | B6: =A6/README!B$4 -> 9.070294785e-05 | C6: =SIN(2*PI()*B6*README!B$5) -> 0.5395507432 | D6: =SIN(2*PI()*B6*README!B$6) -> 0.7591322106 | E6: =SIN(2*PI()*B6*README!B$7) -> -0.749781203 | F6: 0.5489017508
A7: 5 | B7: =A7/README!B$4 -> 0.0001133786848 | C7: =SIN(2*PI()*B7*README!B$5) -> 0.6536362845 | D7: =SIN(2*PI()*B7*README!B$6) -> 0.2879404501 | E7: =SIN(2*PI()*B7*README!B$7) -> -0.962624247 | F7: -0.02104751235
A8: 6 | B8: =A8/README!B$4 -> 0.0001360544218 | C8: =SIN(2*PI()*B8*README!B$5) -> 0.7544758509 | D8: =SIN(2*PI()*B8*README!B$6) -> -0.2742675107 | E8: =SIN(2*PI()*B8*README!B$7) -> -0.2947551744 | F8: 0.1854531658
A9: 7 | B9: =A9/README!B$4 -> 0.0001587301587 | C9: =SIN(2*PI()*B9*README!B$5) -> 0.8400259232 | D9: =SIN(2*PI()*B9*README!B$6) -> -0.749781203 | E9: =SIN(2*PI()*B9*README!B$7) -> 0.6427876097 | F9: 0.7330323299
A10: 8 | B10: =A10/README!B$4 -> 0.0001814058957 | C10: =SIN(2*PI()*B10*README!B$5) -> 0.9085528243 | D10: =SIN(2*PI()*B10*README!B$6) -> -0.9882936815 | E10: =SIN(2*PI()*B10*README!B$7) -> 0.9922392066 | F10: 0.9124983494
A11: 9 | B11: =A11/README!B$4 -> 0.0002040816327 | C11: =SIN(2*PI()*B11*README!B$5) -> 0.958667853 | D11: =SIN(2*PI()*B11*README!B$6) -> -0.914412623 | E11: =SIN(2*PI()*B11*README!B$7) -> 0.4338837391 | F11: 0.4781389691
A12: 10 | B12: =A12/README!B$4 -> 0.0002267573696 | C12: =SIN(2*PI()*B12*README!B$5) -> 0.9893554255 | D12: =SIN(2*PI()*B12*README!B$6) -> -0.5514913743 | E12: =SIN(2*PI()*B12*README!B$7) -> -0.5214352034 | F12: -0.08357115217
A13: 11 | B13: =A13/README!B$4 -> 0.0002494331066 | C13: =SIN(2*PI()*B13*README!B$5) -> 0.9999936565 | D13: =SIN(2*PI()*B13*README!B$6) -> -0.01424710371 | E13: =SIN(2*PI()*B13*README!B$7) -> -0.999689182 | F13: -0.01394262925
A14: 12 | B14: =A14/README!B$4 -> 0.0002721088435 | C14: =SIN(2*PI()*B14*README!B$5) -> 0.9903669615 | D14: =SIN(2*PI()*B14*README!B$6) -> 0.5275005885 | E14: =SIN(2*PI()*B14*README!B$7) -> -0.5633200581 | F14: 0.9545474919
A15: 13 | B15: =A15/README!B$4 -> 0.0002947845805 | C15: =SIN(2*PI()*B15*README!B$5) -> 0.9606704261 | D15: =SIN(2*PI()*B15*README!B$6) -> 0.9025085982 | E15: =SIN(2*PI()*B15*README!B$7) -> 0.3884347963 | F15: 2.251613821
A16: 14 | B16: =A16/README!B$4 -> 0.0003174603175 | C16: =SIN(2*PI()*B16*README!B$5) -> 0.9115058523 | D16: =SIN(2*PI()*B16*README!B$6) -> 0.9922392066 | E16: =SIN(2*PI()*B16*README!B$7) -> 0.984807753 | F16: 2.888552812
A17: 15 | B17: =A17/README!B$4 -> 0.0003401360544 | C17: =SIN(2*PI()*B17*README!B$5) -> 0.8438695628 | D17: =SIN(2*PI()*B17*README!B$6) -> 0.7683291217 | E17: =SIN(2*PI()*B17*README!B$7) -> 0.6801727378 | F17: 2.292371422
A18: 16 | B18: =A18/README!B$4 -> 0.0003628117914 | C18: =SIN(2*PI()*B18*README!B$5) -> 0.7591322106 | D18: =SIN(2*PI()*B18*README!B$6) -> 0.3015549404 | E18: =SIN(2*PI()*B18*README!B$7) -> -0.2467573977 | F18: 0.8139297533
A19: 17 | B19: =A19/README!B$4 -> 0.0003854875283 | C19: =SIN(2*PI()*B19*README!B$5) -> 0.6590110028 | D19: =SIN(2*PI()*B19*README!B$6) -> -0.2605388976 | E19: =SIN(2*PI()*B19*README!B$7) -> -0.9479273462 | F19: -0.549455241 | I19: 出力の計算にはVBAを使います（詳しくは弊社サイトhttp://digitalfilter.comの「スマホとEXCELで学ぶ！実践ディジタル信号処理入門」ご参照）
A20: 18 | B20: =A20/README!B$4 -> 0.0004081632653 | C20: =SIN(2*PI()*B20*README!B$5) -> 0.5455349012 | D20: =SIN(2*PI()*B20*README!B$6) -> -0.7402779971 | E20: =SIN(2*PI()*B20*README!B$7) -> -0.7818314825 | F20: -0.9765745783
A21: 19 | B21: =A21/README!B$4 -> 0.0004308390023 | C21: =SIN(2*PI()*B21*README!B$5) -> 0.4210035051 | D21: =SIN(2*PI()*B21*README!B$6) -> -0.9860197876 | E21: =SIN(2*PI()*B21*README!B$7) -> 0.0995678466 | F21: -0.4654484359
A22: 20 | B22: =A22/README!B$4 -> 0.0004535147392 | C22: =SIN(2*PI()*B22*README!B$5) -> 0.2879404501 | D22: =SIN(2*PI()*B22*README!B$6) -> -0.9200868049 | E22: =SIN(2*PI()*B22*README!B$7) -> 0.8898718088 | F22: 0.2577254541
A23: 21 | B23: =A23/README!B$4 -> 0.0004761904762 | C23: =SIN(2*PI()*B23*README!B$5) -> 0.1490422662 | D23: =SIN(2*PI()*B23*README!B$6) -> -0.5633200581 | E23: =SIN(2*PI()*B23*README!B$7) -> 0.8660254038 | F23: 0.4517476119
A24: 22 | B24: =A24/README!B$4 -> 0.0004988662132 | C24: =SIN(2*PI()*B24*README!B$5) -> 0.007123732612 | D24: =SIN(2*PI()*B24*README!B$6) -> -0.02849131539 | E24: =SIN(2*PI()*B24*README!B$7) -> 0.04984588566 | F24: 0.02847830288
A25: 23 | B25: =A25/README!B$4 -> 0.0005215419501 | C25: =SIN(2*PI()*B25*README!B$5) -> -0.1349391638 | D25: =SIN(2*PI()*B25*README!B$6) -> 0.5153433563 | E25: =SIN(2*PI()*B25*README!B$7) -> -0.8119380057 | F25: -0.4315338132
A26: 24 | B26: =A26/README!B$4 -> 0.0005442176871 | C26: =SIN(2*PI()*B26*README!B$5) -> -0.2742675107 | D26: =SIN(2*PI()*B26*README!B$6) -> 0.8962811717 | E26: =SIN(2*PI()*B26*README!B$7) -> -0.9308737486 | F26: -0.3088600876
A27: 25 | B27: =A27/README!B$4 -> 0.000566893424 | C27: =SIN(2*PI()*B27*README!B$5) -> -0.4080378115 | D27: =SIN(2*PI()*B27*README!B$6) -> 0.9939100368 | E27: =SIN(2*PI()*B27*README!B$7) -> -0.1981461432 | F27: 0.3877260821
A28: 26 | B28: =A28/README!B$4 -> 0.000589569161 | C28: =SIN(2*PI()*B28*README!B$5) -> -0.5335392039 | D28: =SIN(2*PI()*B28*README!B$6) -> 0.7773700696 | E28: =SIN(2*PI()*B28*README!B$7) -> 0.7158668493 | F28: 0.9596977149
A29: 27 | B29: =A29/README!B$4 -> 0.000612244898 | C29: =SIN(2*PI()*B29*README!B$5) -> -0.6482283953 | D29: =SIN(2*PI()*B29*README!B$6) -> 0.315108218 | E29: =SIN(2*PI()*B29*README!B$7) -> 0.9749279122 | F29: 0.6418077349
A30: 28 | B30: =A30/README!B$4 -> 0.0006349206349 | C30: =SIN(2*PI()*B30*README!B$5) -> -0.749781203 | D30: =SIN(2*PI()*B30*README!B$6) -> -0.2467573977 | E30: =SIN(2*PI()*B30*README!B$7) -> 0.3420201433 | F30: -0.6545184573
A31: 29 | B31: =A31/README!B$4 -> 0.0006575963719 | C31: =SIN(2*PI()*B31*README!B$5) -> -0.8361396537 | D31: =SIN(2*PI()*B31*README!B$6) -> -0.730624522 | E31: =SIN(2*PI()*B31*README!B$7) -> -0.6038044103 | F31: -2.170568586
A32: 30 | B32: =A32/README!B$4 -> 0.0006802721088 | C32: =SIN(2*PI()*B32*README!B$5) -> -0.9055536889 | D32: =SIN(2*PI()*B32*README!B$6) -> -0.9835457412 | E32: =SIN(2*PI()*B32*README!B$7) -> -0.9972037972 | F32: -2.886303227
A33: 31 | B33: =A33/README!B$4 -> 0.0007029478458 | C33: =SIN(2*PI()*B33*README!B$5) -> -0.9566166292 | D33: =SIN(2*PI()*B33*README!B$6) -> -0.925574218 | E33: =SIN(2*PI()*B33*README!B$7) -> -0.4782539786 | F33: -2.360444826
A34: 32 | B34: =A34/README!B$4 -> 0.0007256235828 | C34: =SIN(2*PI()*B34*README!B$5) -> -0.9882936815 | D34: =SIN(2*PI()*B34*README!B$6) -> -0.5750343933 | E34: =SIN(2*PI()*B34*README!B$7) -> 0.4782539786 | F34: -1.085074096
A35: 33 | B35: =A35/README!B$4 -> 0.0007482993197 | C35: =SIN(2*PI()*B35*README!B$5) -> -0.9999429086 | D35: =SIN(2*PI()*B35*README!B$6) -> -0.04272974361 | E35: =SIN(2*PI()*B35*README!B$7) -> 0.9972037972 | F35: -0.045468855
A36: 34 | B36: =A36/README!B$4 -> 0.0007709750567 | C36: =SIN(2*PI()*B36*README!B$5) -> -0.9913282381 | D36: =SIN(2*PI()*B36*README!B$6) -> 0.5030815145 | E36: =SIN(2*PI()*B36*README!B$7) -> 0.6038044103 | F36: 0.1155576867
A37: 35 | B37: =A37/README!B$4 -> 0.0007936507937 | C37: =SIN(2*PI()*B37*README!B$5) -> -0.962624247 | D37: =SIN(2*PI()*B37*README!B$6) -> 0.8898718088 | E37: =SIN(2*PI()*B37*README!B$7) -> -0.3420201433 | F37: -0.4147725815
A38: 36 | B38: =A38/README!B$4 -> 0.0008163265306 | C38: =SIN(2*PI()*B38*README!B$5) -> -0.914412623 | D38: =SIN(2*PI()*B38*README!B$6) -> 0.9953791129 | E38: =SIN(2*PI()*B38*README!B$7) -> -0.9749279122 | F38: -0.8939614222
A39: 37 | B39: =A39/README!B$4 -> 0.0008390022676 | C39: =SIN(2*PI()*B39*README!B$5) -> -0.8476703775 | D39: =SIN(2*PI()*B39*README!B$6) -> 0.7862532188 | E39: =SIN(2*PI()*B39*README!B$7) -> -0.7158668493 | F39: -0.7772840079
A40: 38 | B40: =A40/README!B$4 -> 0.0008616780045 | C40: =SIN(2*PI()*B40*README!B$5) -> -0.7637500456 | D40: =SIN(2*PI()*B40*README!B$6) -> 0.3285975317 | E40: =SIN(2*PI()*B40*README!B$7) -> 0.1981461432 | F40: -0.2370063707
A41: 39 | B41: =A41/README!B$4 -> 0.0008843537415 | C41: =SIN(2*PI()*B41*README!B$5) -> -0.6643522775 | D41: =SIN(2*PI()*B41*README!B$6) -> -0.2329258084 | E41: =SIN(2*PI()*B41*README!B$7) -> 0.9308737486 | F41: 0.03359566272
A42: 40 | B42: =A42/README!B$4 -> 0.0009070294785 | C42: =SIN(2*PI()*B42*README!B$5) -> -0.5514913743 | D42: =SIN(2*PI()*B42*README!B$6) -> -0.7208227372 | E42: =SIN(2*PI()*B42*README!B$7) -> 0.8119380057 | F42: -0.4603761058
A43: 41 | B43: =A43/README!B$4 -> 0.0009297052154 | C43: =SIN(2*PI()*B43*README!B$5) -> -0.4274544684 | D43: =SIN(2*PI()*B43*README!B$6) -> -0.9808720446 | E43: =SIN(2*PI()*B43*README!B$7) -> -0.04984588566 | F43: -1.458172399
A44: 42 | B44: =A44/README!B$4 -> 0.0009523809524 | C44: =SIN(2*PI()*B44*README!B$5) -> -0.2947551744 | D44: =SIN(2*PI()*B44*README!B$6) -> -0.9308737486 | E44: =SIN(2*PI()*B44*README!B$7) -> -0.8660254038 | F44: -2.091654327
A45: 43 | B45: =A45/README!B$4 -> 0.0009750566893 | C45: =SIN(2*PI()*B45*README!B$5) -> -0.1560826508 | D45: =SIN(2*PI()*B45*README!B$6) -> -0.5866320022 | E45: =SIN(2*PI()*B45*README!B$7) -> -0.8898718088 | F45: -1.632586462
A46: 44 | B46: =A46/README!B$4 -> 0.0009977324263 | C46: =SIN(2*PI()*B46*README!B$5) -> -0.01424710371 | D46: =SIN(2*PI()*B46*README!B$6) -> -0.05695949812 | E46: =SIN(2*PI()*B46*README!B$7) -> -0.0995678466 | F46: -0.1707744484
A47: 45 | B47: =A47/README!B$4 -> 0.001020408163 | C47: =SIN(2*PI()*B47*README!B$5) -> 0.1278771617 | D47: =SIN(2*PI()*B47*README!B$6) -> 0.490717552 | E47: =SIN(2*PI()*B47*README!B$7) -> 0.7818314825 | F47: 1.400426196
A48: 46 | B48: =A48/README!B$4 -> 0.0010430839 | C48: =SIN(2*PI()*B48*README!B$5) -> 0.2674099894 | D48: =SIN(2*PI()*B48*README!B$6) -> 0.8832818106 | E48: =SIN(2*PI()*B48*README!B$7) -> 0.9479273462 | F48: 2.098619146
A49: 47 | B49: =A49/README!B$4 -> 0.001065759637 | C49: =SIN(2*PI()*B49*README!B$5) -> 0.4015237392 | D49: =SIN(2*PI()*B49*README!B$6) -> 0.9966461368 | E49: =SIN(2*PI()*B49*README!B$7) -> 0.2467573977 | F49: 1.644927274
A50: 48 | B50: =A50/README!B$4 -> 0.001088435374 | C50: =SIN(2*PI()*B50*README!B$5) -> 0.5275005885 | D50: =SIN(2*PI()*B50*README!B$6) -> 0.7949767663 | E50: =SIN(2*PI()*B50*README!B$7) -> -0.6801727378 | F50: 0.6423046171
A51: 49 | B51: =A51/README!B$4 -> 0.001111111111 | C51: =SIN(2*PI()*B51*README!B$5) -> 0.6427876097 | D51: =SIN(2*PI()*B51*README!B$6) -> 0.3420201433 | E51: =SIN(2*PI()*B51*README!B$7) -> -0.984807753 | F51: 0
A52: 50 | B52: =A52/README!B$4 -> 0.001133786848 | C52: =SIN(2*PI()*B52*README!B$5) -> 0.745048505 | D52: =SIN(2*PI()*B52*README!B$6) -> -0.2190469375 | E52: =SIN(2*PI()*B52*README!B$7) -> -0.3884347963 | F52: 0.1375667712
A53: 51 | B53: =A53/README!B$4 -> 0.001156462585 | C53: =SIN(2*PI()*B53*README!B$5) -> 0.8322109517 | D53: =SIN(2*PI()*B53*README!B$6) -> -0.7108746324 | E53: =SIN(2*PI()*B53*README!B$7) -> 0.5633200581 | F53: 0.6846563774
A54: 52 | B54: =A54/README!B$4 -> 0.001179138322 | C54: =SIN(2*PI()*B54*README!B$5) -> 0.9025085982 | D54: =SIN(2*PI()*B54*README!B$6) -> -0.9779992406 | E54: =SIN(2*PI()*B54*README!B$7) -> 0.999689182 | F54: 0.9241985397
A55: 53 | B55: =A55/README!B$4 -> 0.001201814059 | C55: =SIN(2*PI()*B55*README!B$5) -> 0.9545168589 | D55: =SIN(2*PI()*B55*README!B$6) -> -0.935984321 | E55: =SIN(2*PI()*B55*README!B$7) -> 0.5214352034 | F55: 0.5399677413
A56: 54 | B56: =A56/README!B$4 -> 0.001224489796 | C56: =SIN(2*PI()*B56*README!B$5) -> 0.9871817834 | D56: =SIN(2*PI()*B56*README!B$6) -> -0.5981105305 | E56: =SIN(2*PI()*B56*README!B$7) -> -0.4338837391 | F56: -0.04481248619
A57: 55 | B57: =A57/README!B$4 -> 0.001247165533 | C57: =SIN(2*PI()*B57*README!B$5) -> 0.9998414154 | D57: =SIN(2*PI()*B57*README!B$6) -> -0.0711776904 | E57: =SIN(2*PI()*B57*README!B$7) -> -0.9922392066 | F57: -0.06357548163
A58: 56 | B58: =A58/README!B$4 -> 0.00126984127 | C58: =SIN(2*PI()*B58*README!B$5) -> 0.9922392066 | D58: =SIN(2*PI()*B58*README!B$6) -> 0.4782539786 | E58: =SIN(2*PI()*B58*README!B$7) -> -0.6427876097 | F58: 0.8277055755
A59: 57 | B59: =A59/README!B$4 -> 0.001292517007 | C59: =SIN(2*PI()*B59*README!B$5) -> 0.9645292163 | D59: =SIN(2*PI()*B59*README!B$6) -> 0.8765125148 | E59: =SIN(2*PI()*B59*README!B$7) -> 0.2947551744 | F59: 2.135796906
A60: 58 | B60: =A60/README!B$4 -> 0.001315192744 | C60: =SIN(2*PI()*B60*README!B$5) -> 0.9172729889 | D60: =SIN(2*PI()*B60*README!B$6) -> 0.9977108512 | E60: =SIN(2*PI()*B60*README!B$7) -> 0.962624247 | F60: 2.877608087
A61: 59 | B61: =A61/README!B$4 -> 0.001337868481 | C61: =SIN(2*PI()*B61*README!B$5) -> 0.8514281745 | D61: =SIN(2*PI()*B61*README!B$6) -> 0.8035389413 | E61: =SIN(2*PI()*B61*README!B$7) -> 0.749781203 | F61: 2.404748319
A62: 60 | B62: =A62/README!B$4 -> 0.001360544218 | C62: =SIN(2*PI()*B62*README!B$5) -> 0.7683291217 | D62: =SIN(2*PI()*B62*README!B$6) -> 0.3553733282 | E62: =SIN(2*PI()*B62*README!B$7) -> -0.1490422662 | F62: 0.9746601837
A63: 61 | B63: =A63/README!B$4 -> 0.001383219955 | C63: =SIN(2*PI()*B63*README!B$5) -> 0.6696598375 | D63: =SIN(2*PI()*B63*README!B$6) -> -0.2051236021 | E63: =SIN(2*PI()*B63*README!B$7) -> -0.9115058523 | F63: -0.4469696169
A64: 62 | B64: =A64/README!B$4 -> 0.001405895692 | C64: =SIN(2*PI()*B64*README!B$5) -> 0.5574198602 | D64: =SIN(2*PI()*B64*README!B$6) -> -0.700782227 | E64: =SIN(2*PI()*B64*README!B$7) -> -0.8400259232 | F64: -0.9833882899
A65: 63 | B65: =A65/README!B$4 -> 0.001428571429 | C65: =SIN(2*PI()*B65*README!B$5) -> 0.4338837391 | D65: =SIN(2*PI()*B65*README!B$6) -> -0.9749279122 | E65: =SIN(2*PI()*B65*README!B$7) -> -9.555724267e-15 | F65: -0.5410441731
A66: 64 | B66: =A66/README!B$4 -> 0.001451247166 | C66: =SIN(2*PI()*B66*README!B$5) -> 0.3015549404 | D66: =SIN(2*PI()*B66*README!B$6) -> -0.9409048976 | E66: =SIN(2*PI()*B66*README!B$7) -> 0.8400259232 | F66: 0.200675966
A67: 65 | B67: =A67/README!B$4 -> 0.001473922902 | C67: =SIN(2*PI()*B67*README!B$5) -> 0.1631151144 | D67: =SIN(2*PI()*B67*README!B$6) -> -0.6094676482 | E67: =SIN(2*PI()*B67*README!B$7) -> 0.9115058523 | F67: =C67+D67+E67 -> 0.4651533186
A68: 66 | B68: =A68/README!B$4 -> 0.001496598639 | C68: =SIN(2*PI()*B68*README!B$5) -> 0.02136975179 | D68: =SIN(2*PI()*B68*README!B$6) -> -0.0853814343 | E68: =SIN(2*PI()*B68*README!B$7) -> 0.1490422662 | F68: 0.08503058367
A69: 67 | B69: =A69/README!B$4 -> 0.001519274376 | C69: =SIN(2*PI()*B69*README!B$5) -> -0.1208086701 | D69: =SIN(2*PI()*B69*README!B$6) -> 0.4656933243 | E69: =SIN(2*PI()*B69*README!B$7) -> -0.749781203 | F69: -0.4048965487
A70: 68 | B70: =A70/README!B$4 -> 0.001541950113 | C70: =SIN(2*PI()*B70*README!B$5) -> -0.2605388976 | D70: =SIN(2*PI()*B70*README!B$6) -> 0.8695652955 | E70: =SIN(2*PI()*B70*README!B$7) -> -0.962624247 | F70: -0.3535978491
A71: 69 | B71: =A71/README!B$4 -> 0.00156462585 | C71: =SIN(2*PI()*B71*README!B$5) -> -0.3949892902 | D71: =SIN(2*PI()*B71*README!B$6) -> 0.9985730401 | E71: =SIN(2*PI()*B71*README!B$7) -> -0.2947551744 | F71: 0.3088285754
A72: 70 | B72: =A72/README!B$4 -> 0.001587301587 | C72: =SIN(2*PI()*B72*README!B$5) -> -0.5214352034 | D72: =SIN(2*PI()*B72*README!B$6) -> 0.8119380057 | E72: =SIN(2*PI()*B72*README!B$7) -> 0.6427876097 | F72: 0.933290412
A73: 71 | B73: =A73/README!B$4 -> 0.001609977324 | C73: =SIN(2*PI()*B73*README!B$5) -> -0.6373142037 | D73: =SIN(2*PI()*B73*README!B$6) -> 0.3686543757 | E73: =SIN(2*PI()*B73*README!B$7) -> 0.9922392066 | F73: 0.7235793785
A74: 72 | B74: =A74/README!B$4 -> 0.001632653061 | C74: =SIN(2*PI()*B74*README!B$5) -> -0.7402779971 | D74: =SIN(2*PI()*B74*README!B$6) -> -0.1911586287 | E74: =SIN(2*PI()*B74*README!B$7) -> 0.4338837391 | F74: -0.4975528867
A75: 73 | B75: =A75/README!B$4 -> 0.001655328798 | C75: =SIN(2*PI()*B75*README!B$5) -> -0.8282400165 | D75: =SIN(2*PI()*B75*README!B$6) -> -0.6905475696 | E75: =SIN(2*PI()*B75*README!B$7) -> -0.5214352034 | F75: -2.040222789
A76: 74 | B76: =A76/README!B$4 -> 0.001678004535 | C76: =SIN(2*PI()*B76*README!B$5) -> -0.8994177069 | D76: =SIN(2*PI()*B76*README!B$6) -> -0.9716586829 | E76: =SIN(2*PI()*B76*README!B$7) -> -0.999689182 | F76: -2.870765572
A77: 75 | B77: =A77/README!B$4 -> 0.001700680272 | C77: =SIN(2*PI()*B77*README!B$5) -> -0.9523686485 | D77: =SIN(2*PI()*B77*README!B$6) -> -0.9456344796 | E77: =SIN(2*PI()*B77*README!B$7) -> -0.5633200581 | F77: -2.461323186
A78: 76 | B78: =A78/README!B$4 -> 0.001723356009 | C78: =SIN(2*PI()*B78*README!B$5) -> -0.9860197876 | D78: =SIN(2*PI()*B78*README!B$6) -> -0.6207010498 | E78: =SIN(2*PI()*B78*README!B$7) -> 0.3884347963 | F78: -1.218286041
A79: 77 | B79: =A79/README!B$4 -> 0.001746031746 | C79: =SIN(2*PI()*B79*README!B$5) -> -0.999689182 | D79: =SIN(2*PI()*B79*README!B$6) -> -0.0995678466 | E79: =SIN(2*PI()*B79*README!B$7) -> 0.984807753 | F79: -0.1144492756
A80: 78 | B80: =A80/README!B$4 -> 0.001768707483 | C80: =SIN(2*PI()*B80*README!B$5) -> -0.9930998207 | D80: =SIN(2*PI()*B80*README!B$6) -> 0.4530381388 | E80: =SIN(2*PI()*B80*README!B$7) -> 0.6801727378 | F80: 0.1401110559
A81: 79 | B81: =A81/README!B$4 -> 0.00179138322 | C81: =SIN(2*PI()*B81*README!B$5) -> -0.9663852375 | D81: =SIN(2*PI()*B81*README!B$6) -> 0.8624415629 | E81: =SIN(2*PI()*B81*README!B$7) -> -0.2467573977 | F81: -0.3507010723
A82: 80 | B82: =A82/README!B$4 -> 0.001814058957 | C82: =SIN(2*PI()*B82*README!B$5) -> -0.9200868049 | D82: =SIN(2*PI()*B82*README!B$6) -> 0.9992325283 | E82: =SIN(2*PI()*B82*README!B$7) -> -0.9479273462 | F82: -0.8687816228
A83: 81 | B83: =A83/README!B$4 -> 0.001836734694 | C83: =SIN(2*PI()*B83*README!B$5) -> -0.855142763 | D83: =SIN(2*PI()*B83*README!B$6) -> 0.8201722546 | E83: =SIN(2*PI()*B83*README!B$7) -> -0.7818314825 | F83: -0.8168019909
A84: 82 | B84: =A84/README!B$4 -> 0.001859410431 | C84: =SIN(2*PI()*B84*README!B$5) -> -0.7728692065 | D84: =SIN(2*PI()*B84*README!B$6) -> 0.3818605899 | E84: =SIN(2*PI()*B84*README!B$7) -> 0.0995678466 | F84: -0.29144077
A85: 83 | B85: =A85/README!B$4 -> 0.001882086168 | C85: =SIN(2*PI()*B85*README!B$5) -> -0.6749334135 | D85: =SIN(2*PI()*B85*README!B$6) -> -0.1771548519 | E85: =SIN(2*PI()*B85*README!B$7) -> 0.8898718088 | F85: 0.03778354341
A86: 84 | B86: =A86/README!B$4 -> 0.001904761905 | C86: =SIN(2*PI()*B86*README!B$5) -> -0.5633200581 | D86: =SIN(2*PI()*B86*README!B$6) -> -0.6801727378 | E86: =SIN(2*PI()*B86*README!B$7) -> 0.8660254038 | F86: -0.3774673921
A87: 85 | B87: =A87/README!B$4 -> 0.001927437642 | C87: =SIN(2*PI()*B87*README!B$5) -> -0.440290991 | D87: =SIN(2*PI()*B87*README!B$6) -> -0.9681922164 | E87: =SIN(2*PI()*B87*README!B$7) -> 0.04984588566 | F87: -1.358637322
A88: 86 | B88: =A88/README!B$4 -> 0.001950113379 | C88: =SIN(2*PI()*B88*README!B$5) -> -0.3083394031 | D88: =SIN(2*PI()*B88*README!B$6) -> -0.9501721071 | E88: =SIN(2*PI()*B88*README!B$7) -> -0.8119380057 | F88: -2.070449516
A89: 87 | B89: =A89/README!B$4 -> 0.001972789116 | C89: =SIN(2*PI()*B89*README!B$5) -> -0.1701393003 | D89: =SIN(2*PI()*B89*README!B$6) -> -0.6318084552 | E89: =SIN(2*PI()*B89*README!B$7) -> -0.9308737486 | F89: -1.732821504
A90: 88 | B90: =A90/README!B$4 -> 0.001995464853 | C90: =SIN(2*PI()*B90*README!B$5) -> -0.02849131539 | D90: =SIN(2*PI()*B90*README!B$6) -> -0.1137340476 | E90: =SIN(2*PI()*B90*README!B$7) -> -0.1981461432 | F90: -0.3403715062
A91: 89 | B91: =A91/README!B$4 -> 0.00201814059 | C91: =SIN(2*PI()*B91*README!B$5) -> 0.1137340476 | D91: =SIN(2*PI()*B91*README!B$6) -> 0.440290991 | E91: =SIN(2*PI()*B91*README!B$7) -> 0.7158668493 | F91: 1.269891888
A92: 90 | B92: =A92/README!B$4 -> 0.002040816327 | C92: =SIN(2*PI()*B92*README!B$5) -> 0.2536545839 | D92: =SIN(2*PI()*B92*README!B$6) -> 0.855142763 | E92: =SIN(2*PI()*B92*README!B$7) -> 0.9749279122 | F92: 2.083725259
A93: 91 | B93: =A93/README!B$4 -> 0.002063492063 | C93: =SIN(2*PI()*B93*README!B$5) -> 0.3884347963 | D93: =SIN(2*PI()*B93*README!B$6) -> 0.999689182 | E93: =SIN(2*PI()*B93*README!B$7) -> 0.3420201433 | F93: 1.730144122
A94: 92 | B94: =A94/README!B$4 -> 0.0020861678 | C94: =SIN(2*PI()*B94*README!B$5) -> 0.5153433563 | D94: =SIN(2*PI()*B94*README!B$6) -> 0.8282400165 | E94: =SIN(2*PI()*B94*README!B$7) -> -0.6038044103 | F94: 0.7397789625
A95: 93 | B95: =A95/README!B$4 -> 0.002108843537 | C95: =SIN(2*PI()*B95*README!B$5) -> 0.6318084552 | D95: =SIN(2*PI()*B95*README!B$6) -> 0.3949892902 | E95: =SIN(2*PI()*B95*README!B$7) -> -0.9972037972 | F95: 0.0295939483
A96: 94 | B96: =A96/README!B$4 -> 0.002131519274 | C96: =SIN(2*PI()*B96*README!B$5) -> 0.7354699214 | D96: =SIN(2*PI()*B96*README!B$6) -> -0.1631151144 | E96: =SIN(2*PI()*B96*README!B$7) -> -0.4782539786 | F96: 0.09410082834
A97: 95 | B97: =A97/README!B$4 -> 0.002154195011 | C97: =SIN(2*PI()*B97*README!B$5) -> 0.8242270496 | D97: =SIN(2*PI()*B97*README!B$6) -> -0.6696598375 | E97: =SIN(2*PI()*B97*README!B$7) -> 0.4782539786 | F97: 0.6328211907
A98: 96 | B98: =A98/README!B$4 -> 0.002176870748 | C98: =SIN(2*PI()*B98*README!B$5) -> 0.8962811717 | D98: =SIN(2*PI()*B98*README!B$6) -> -0.9645292163 | E98: =SIN(2*PI()*B98*README!B$7) -> 0.9972037972 | F98: 0.9289557526
A99: 97 | B99: =A99/README!B$4 -> 0.002199546485 | C99: =SIN(2*PI()*B99*README!B$5) -> 0.9501721071 | D99: =SIN(2*PI()*B99*README!B$6) -> -0.9545168589 | E99: =SIN(2*PI()*B99*README!B$7) -> 0.6038044103 | F99: 0.5994596585
A100: 98 | B100: =A100/README!B$4 -> 0.002222222222 | C100: =SIN(2*PI()*B100*README!B$5) -> 0.984807753 | D100: =SIN(2*PI()*B100*README!B$6) -> -0.6427876097 | E100: =SIN(2*PI()*B100*README!B$7) -> -0.3420201433 | F100: -4.440892099e-16
A101: 99 | B101: =A101/README!B$4 -> 0.002244897959 | C101: =SIN(2*PI()*B101*README!B$5) -> 0.9994862162 | D101: =SIN(2*PI()*B101*README!B$6) -> -0.1278771617 | E101: =SIN(2*PI()*B101*README!B$7) -> -0.9749279122 | F101: -0.1033188577
A102: 100 | B102: =A102/README!B$4 -> 0.002267573696 | C102: =SIN(2*PI()*B102*README!B$5) -> 0.9939100368 | D102: =SIN(2*PI()*B102*README!B$6) -> 0.4274544684 | E102: =SIN(2*PI()*B102*README!B$7) -> -0.7158668493 | F102: 0.7054976559
A103: 101 | B103: =A103/README!B$4 -> 0.002290249433 | C103: =SIN(2*PI()*B103*README!B$5) -> 0.9681922164 | D103: =SIN(2*PI()*B103*README!B$6) -> 0.8476703775 | E103: =SIN(2*PI()*B103*README!B$7) -> 0.1981461432 | F103: 2.014008737
A104: 102 | B104: =A104/README!B$4 -> 0.00231292517 | C104: =SIN(2*PI()*B104*README!B$5) -> 0.922853928 | D104: =SIN(2*PI()*B104*README!B$6) -> 0.9999429086 | E104: =SIN(2*PI()*B104*README!B$7) -> 0.9308737486 | F104: 2.853670585
A105: 103 | B105: =A105/README!B$4 -> 0.002335600907 | C105: =SIN(2*PI()*B105*README!B$5) -> 0.8588139546 | D105: =SIN(2*PI()*B105*README!B$6) -> 0.8361396537 | E105: =SIN(2*PI()*B105*README!B$7) -> 0.8119380057 | F105: 2.506891614
A106: 104 | B106: =A106/README!B$4 -> 0.002358276644 | C106: =SIN(2*PI()*B106*README!B$5) -> 0.7773700696 | D106: =SIN(2*PI()*B106*README!B$6) -> 0.4080378115 | E106: =SIN(2*PI()*B106*README!B$7) -> -0.04984588566 | F106: 1.135561995
A107: 105 | B107: =A107/README!B$4 -> 0.002380952381 | C107: =SIN(2*PI()*B107*README!B$5) -> 0.6801727378 | D107: =SIN(2*PI()*B107*README!B$6) -> -0.1490422662 | E107: =SIN(2*PI()*B107*README!B$7) -> -0.8660254038 | F107: -0.3348949322
A108: 106 | B108: =A108/README!B$4 -> 0.002403628118 | C108: =SIN(2*PI()*B108*README!B$5) -> 0.5691916684 | D108: =SIN(2*PI()*B108*README!B$6) -> -0.6590110028 | E108: =SIN(2*PI()*B108*README!B$7) -> -0.8898718088 | F108: -0.9796911432
A109: 107 | B109: =A109/README!B$4 -> 0.002426303855 | C109: =SIN(2*PI()*B109*README!B$5) -> 0.4466758989 | D109: =SIN(2*PI()*B109*README!B$6) -> -0.9606704261 | E109: =SIN(2*PI()*B109*README!B$7) -> -0.0995678466 | F109: -0.6135623738
A110: 108 | B110: =A110/README!B$4 -> 0.002448979592 | C110: =SIN(2*PI()*B110*README!B$5) -> 0.315108218 | D110: =SIN(2*PI()*B110*README!B$6) -> -0.958667853 | E110: =SIN(2*PI()*B110*README!B$7) -> 0.7818314825 | F110: 0.1382718475
A111: 109 | B111: =A111/README!B$4 -> 0.002471655329 | C111: =SIN(2*PI()*B111*README!B$5) -> 0.1771548519 | D111: =SIN(2*PI()*B111*README!B$6) -> -0.6536362845 | E111: =SIN(2*PI()*B111*README!B$7) -> 0.9479273462 | F111: 0.4714459136
A112: 110 | B112: =A112/README!B$4 -> 0.002494331066 | C112: =SIN(2*PI()*B112*README!B$5) -> 0.03561143311 | D112: =SIN(2*PI()*B112*README!B$6) -> -0.141994318 | E112: =SIN(2*PI()*B112*README!B$7) -> 0.2467573977 | F112: 0.1403745128
A113: 111 | B113: =A113/README!B$4 -> 0.002517006803 | C113: =SIN(2*PI()*B113*README!B$5) -> -0.1066536533 | D113: =SIN(2*PI()*B113*README!B$6) -> 0.4145311767 | E113: =SIN(2*PI()*B113*README!B$7) -> -0.6801727378 | F113: -0.3722952144
A114: 112 | B114: =A114/README!B$4 -> 0.00253968254 | C114: =SIN(2*PI()*B114*README!B$5) -> -0.2467573977 | D114: =SIN(2*PI()*B114*README!B$6) -> 0.8400259232 | E114: =SIN(2*PI()*B114*README!B$7) -> -0.984807753 | F114: -0.3915392276
A115: 113 | B115: =A115/README!B$4 -> 0.002562358277 | C115: =SIN(2*PI()*B115*README!B$5) -> -0.3818605899 | D115: =SIN(2*PI()*B115*README!B$6) -> 0.9999936565 | E115: =SIN(2*PI()*B115*README!B$7) -> -0.3884347963 | F115: 0.2296982702
A116: 114 | B116: =A116/README!B$4 -> 0.002585034014 | C116: =SIN(2*PI()*B116*README!B$5) -> -0.5092253566 | D116: =SIN(2*PI()*B116*README!B$6) -> 0.8438695628 | E116: =SIN(2*PI()*B116*README!B$7) -> 0.5633200581 | F116: 0.8979642643
A117: 115 | B117: =A117/README!B$4 -> 0.002607709751 | C117: =SIN(2*PI()*B117*README!B$5) -> -0.6262706436 | D117: =SIN(2*PI()*B117*README!B$6) -> 0.4210035051 | E117: =SIN(2*PI()*B117*README!B$7) -> 0.999689182 | F117: 0.7944220435
A118: 116 | B118: =A118/README!B$4 -> 0.002630385488 | C118: =SIN(2*PI()*B118*README!B$5) -> -0.730624522 | D118: =SIN(2*PI()*B118*README!B$6) -> -0.1349391638 | E118: =SIN(2*PI()*B118*README!B$7) -> 0.5214352034 | F118: -0.3441284824
A119: 117 | B119: =A119/README!B$4 -> 0.002653061224 | C119: =SIN(2*PI()*B119*README!B$5) -> -0.8201722546 | D119: =SIN(2*PI()*B119*README!B$6) -> -0.6482283953 | E119: =SIN(2*PI()*B119*README!B$7) -> -0.4338837391 | F119: -1.902284389
A120: 118 | B120: =A120/README!B$4 -> 0.002675736961 | C120: =SIN(2*PI()*B120*README!B$5) -> -0.8930991518 | D120: =SIN(2*PI()*B120*README!B$6) -> -0.9566166292 | E120: =SIN(2*PI()*B120*README!B$7) -> -0.9922392066 | F120: -2.841954988
A121: 119 | B121: =A121/README!B$4 -> 0.002698412698 | C121: =SIN(2*PI()*B121*README!B$5) -> -0.9479273462 | D121: =SIN(2*PI()*B121*README!B$6) -> -0.962624247 | E121: =SIN(2*PI()*B121*README!B$7) -> -0.6427876097 | F121: -2.553339203
A122: 120 | B122: =A122/README!B$4 -> 0.002721088435 | C122: =SIN(2*PI()*B122*README!B$5) -> -0.9835457412 | D122: =SIN(2*PI()*B122*README!B$6) -> -0.6643522775 | E122: =SIN(2*PI()*B122*README!B$7) -> 0.2947551744 | F122: -1.353142844
A123: 121 | B123: =A123/README!B$4 -> 0.002743764172 | C123: =SIN(2*PI()*B123*README!B$5) -> -0.9992325283 | D123: =SIN(2*PI()*B123*README!B$6) -> -0.1560826508 | E123: =SIN(2*PI()*B123*README!B$7) -> 0.962624247 | F123: -0.1926909321
A124: 122 | B124: =A124/README!B$4 -> 0.002766439909 | C124: =SIN(2*PI()*B124*README!B$5) -> -0.9946698137 | D124: =SIN(2*PI()*B124*README!B$6) -> 0.4015237392 | E124: =SIN(2*PI()*B124*README!B$7) -> 0.749781203 | F124: 0.1566351284
A125: 123 | B125: =A125/README!B$4 -> 0.002789115646 | C125: =SIN(2*PI()*B125*README!B$5) -> -0.9699500613 | D125: =SIN(2*PI()*B125*README!B$6) -> 0.8322109517 | E125: =SIN(2*PI()*B125*README!B$7) -> -0.1490422662 | F125: -0.2867813757
A126: 124 | B126: =A126/README!B$4 -> 0.002811791383 | C126: =SIN(2*PI()*B126*README!B$5) -> -0.925574218 | D126: =SIN(2*PI()*B126*README!B$6) -> 0.9998414154 | E126: =SIN(2*PI()*B126*README!B$7) -> -0.9115058523 | F126: -0.837238655
A127: 125 | B127: =A127/README!B$4 -> 0.00283446712 | C127: =SIN(2*PI()*B127*README!B$5) -> -0.8624415629 | D127: =SIN(2*PI()*B127*README!B$6) -> 0.8514281745 | E127: =SIN(2*PI()*B127*README!B$7) -> -0.8400259232 | F127: -0.8510393115
A128: 126 | B128: =A128/README!B$4 -> 0.002857142857 | C128: =SIN(2*PI()*B128*README!B$5) -> -0.7818314825 | D128: =SIN(2*PI()*B128*README!B$6) -> 0.4338837391 | E128: =SIN(2*PI()*B128*README!B$7) -> -1.911144853e-14 | F128: -0.3479477434
A129: 127 | B129: =A129/README!B$4 -> 0.002879818594 | C129: =SIN(2*PI()*B129*README!B$5) -> -0.6853775445 | D129: =SIN(2*PI()*B129*README!B$6) -> -0.1208086701 | E129: =SIN(2*PI()*B129*README!B$7) -> 0.8400259232 | F129: 0.03383970858
A130: 128 | B130: =A130/README!B$4 -> 0.002902494331 | C130: =SIN(2*PI()*B130*README!B$5) -> -0.5750343933 | D130: =SIN(2*PI()*B130*README!B$6) -> -0.6373142037 | E130: =SIN(2*PI()*B130*README!B$7) -> 0.9115058523 | F130: -0.3008427448
A131: 129 | B131: =A131/README!B$4 -> 0.002925170068 | C131: =SIN(2*PI()*B131*README!B$5) -> -0.4530381388 | D131: =SIN(2*PI()*B131*README!B$6) -> -0.9523686485 | E131: =SIN(2*PI()*B131*README!B$7) -> 0.1490422662 | F131: =C131+D131+E131 -> -1.256364521
A132: 130 | B132: =A132/README!B$4 -> 0.002947845805 | C132: =SIN(2*PI()*B132*README!B$5) -> -0.3218610418 | D132: =SIN(2*PI()*B132*README!B$6) -> -0.9663852375 | E132: =SIN(2*PI()*B132*README!B$7) -> -0.749781203 | F132: -2.038027482
A133: 131 | B133: =A133/README!B$4 -> 0.002970521542 | C133: =SIN(2*PI()*B133*README!B$5) -> -0.1841614132 | D133: =SIN(2*PI()*B133*README!B$6) -> -0.6749334135 | E133: =SIN(2*PI()*B133*README!B$7) -> -0.962624247 | F133: -1.821719074
A134: 132 | B134: =A134/README!B$4 -> 0.002993197279 | C134: =SIN(2*PI()*B134*README!B$5) -> -0.04272974361 | D134: =SIN(2*PI()*B134*README!B$6) -> -0.1701393003 | E134: =SIN(2*PI()*B134*README!B$7) -> -0.2947551744 | F134: -0.5076242183
A135: 133 | B135: =A135/README!B$4 -> 0.003015873016 | C135: =SIN(2*PI()*B135*README!B$5) -> 0.0995678466 | D135: =SIN(2*PI()*B135*README!B$6) -> 0.3884347963 | E135: =SIN(2*PI()*B135*README!B$7) -> 0.6427876097 | F135: 1.130790253
A136: 134 | B136: =A136/README!B$4 -> 0.003038548753 | C136: =SIN(2*PI()*B136*README!B$5) -> 0.239847689 | D136: =SIN(2*PI()*B136*README!B$6) -> 0.8242270496 | E136: =SIN(2*PI()*B136*README!B$7) -> 0.9922392066 | F136: 2.056313945
A137: 135 | B137: =A137/README!B$4 -> 0.00306122449 | C137: =SIN(2*PI()*B137*README!B$5) -> 0.3752670049 | D137: =SIN(2*PI()*B137*README!B$6) -> 0.9994862162 | E137: =SIN(2*PI()*B137*README!B$7) -> 0.4338837391 | F137: 1.80863696
A138: 136 | B138: =A138/README!B$4 -> 0.003083900227 | C138: =SIN(2*PI()*B138*README!B$5) -> 0.5030815145 | D138: =SIN(2*PI()*B138*README!B$6) -> 0.8588139546 | E138: =SIN(2*PI()*B138*README!B$7) -> -0.5214352034 | F138: 0.8404602657
A139: 137 | B139: =A139/README!B$4 -> 0.003106575964 | C139: =SIN(2*PI()*B139*README!B$5) -> 0.6207010498 | D139: =SIN(2*PI()*B139*README!B$6) -> 0.4466758989 | E139: =SIN(2*PI()*B139*README!B$7) -> -0.999689182 | F139: 0.06768776677
A140: 138 | B140: =A140/README!B$4 -> 0.003129251701 | C140: =SIN(2*PI()*B140*README!B$5) -> 0.7257420446 | D140: =SIN(2*PI()*B140*README!B$6) -> -0.1066536533 | E140: =SIN(2*PI()*B140*README!B$7) -> -0.5633200581 | F140: 0.05576833322
A141: 139 | B141: =A141/README!B$4 -> 0.003151927438 | C141: =SIN(2*PI()*B141*README!B$5) -> 0.8160758374 | D141: =SIN(2*PI()*B141*README!B$6) -> -0.6262706436 | E141: =SIN(2*PI()*B141*README!B$7) -> 0.3884347963 | F141: 0.57823999
A142: 140 | B142: =A142/README!B$4 -> 0.003174603175 | C142: =SIN(2*PI()*B142*README!B$5) -> 0.8898718088 | D142: =SIN(2*PI()*B142*README!B$6) -> -0.9479273462 | E142: =SIN(2*PI()*B142*README!B$7) -> 0.984807753 | F142: 0.9267522157
A143: 141 | B143: =A143/README!B$4 -> 0.003197278912 | C143: =SIN(2*PI()*B143*README!B$5) -> 0.9456344796 | D143: =SIN(2*PI()*B143*README!B$6) -> -0.9699500613 | E143: =SIN(2*PI()*B143*README!B$7) -> 0.6801727378 | F143: 0.6558571561
A144: 142 | B144: =A144/README!B$4 -> 0.003219954649 | C144: =SIN(2*PI()*B144*README!B$5) -> 0.9822338162 | D144: =SIN(2*PI()*B144*README!B$6) -> -0.6853775445 | E144: =SIN(2*PI()*B144*README!B$7) -> -0.2467573977 | F144: 0.05009887401
A145: 143 | B145: =A145/README!B$4 -> 0.003242630385 | C145: =SIN(2*PI()*B145*README!B$5) -> 0.9989281311 | D145: =SIN(2*PI()*B145*README!B$6) -> -0.1841614132 | E145: =SIN(2*PI()*B145*README!B$7) -> -0.9479273462 | F145: -0.1331606283
A146: 144 | B146: =A146/README!B$4 -> 0.003265306122 | C146: =SIN(2*PI()*B146*README!B$5) -> 0.9953791129 | D146: =SIN(2*PI()*B146*README!B$6) -> 0.3752670049 | E146: =SIN(2*PI()*B146*README!B$7) -> -0.7818314825 | F146: 0.5888146354
A147: 145 | B147: =A147/README!B$4 -> 0.003287981859 | C147: =SIN(2*PI()*B147*README!B$5) -> 0.9716586829 | D147: =SIN(2*PI()*B147*README!B$6) -> 0.8160758374 | E147: =SIN(2*PI()*B147*README!B$7) -> 0.0995678466 | F147: 1.887302367
A148: 146 | B148: =A148/README!B$4 -> 0.003310657596 | C148: =SIN(2*PI()*B148*README!B$5) -> 0.9282475368 | D148: =SIN(2*PI()*B148*README!B$6) -> 0.9989281311 | E148: =SIN(2*PI()*B148*README!B$7) -> 0.8898718088 | F148: 2.817047477
A149: 147 | B149: =A149/README!B$4 -> 0.003333333333 | C149: =SIN(2*PI()*B149*README!B$5) -> 0.8660254038 | D149: =SIN(2*PI()*B149*README!B$6) -> 0.8660254038 | E149: =SIN(2*PI()*B149*README!B$7) -> 0.8660254038 | F149: 2.598076211
A150: 148 | B150: =A150/README!B$4 -> 0.00335600907 | C150: =SIN(2*PI()*B150*README!B$5) -> 0.7862532188 | D150: =SIN(2*PI()*B150*README!B$6) -> 0.4593773879 | E150: =SIN(2*PI()*B150*README!B$7) -> 0.04984588566 | F150: 1.295476492
A151: 149 | B151: =A151/README!B$4 -> 0.003378684807 | C151: =SIN(2*PI()*B151*README!B$5) -> 0.6905475696 | D151: =SIN(2*PI()*B151*README!B$6) -> -0.09247698697 | E151: =SIN(2*PI()*B151*README!B$7) -> -0.8119380057 | F151: -0.2138674231
A152: 150 | B152: =A152/README!B$4 -> 0.003401360544 | C152: =SIN(2*PI()*B152*README!B$5) -> 0.5808479363 | D152: =SIN(2*PI()*B152*README!B$6) -> -0.6150999566 | E152: =SIN(2*PI()*B152*README!B$7) -> -0.9308737486 | F152: -0.965125769
A153: 151 | B153: =A153/README!B$4 -> 0.003424036281 | C153: =SIN(2*PI()*B153*README!B$5) -> 0.4593773879 | D153: =SIN(2*PI()*B153*README!B$6) -> -0.9432936238 | E153: =SIN(2*PI()*B153*README!B$7) -> -0.1981461432 | F153: -0.6820623791
A154: 152 | B154: =A154/README!B$4 -> 0.003446712018 | C154: =SIN(2*PI()*B154*README!B$5) -> 0.3285975317 | D154: =SIN(2*PI()*B154*README!B$6) -> -0.9733179946 | E154: =SIN(2*PI()*B154*README!B$7) -> 0.7158668493 | F154: 0.07114638636
A155: 153 | B155: =A155/README!B$4 -> 0.003469387755 | C155: =SIN(2*PI()*B155*README!B$5) -> 0.1911586287 | D155: =SIN(2*PI()*B155*README!B$6) -> -0.6956825506 | E155: =SIN(2*PI()*B155*README!B$7) -> 0.9749279122 | F155: 0.4704039903
A156: 154 | B156: =A156/README!B$4 -> 0.003492063492 | C156: =SIN(2*PI()*B156*README!B$5) -> 0.04984588566 | D156: =SIN(2*PI()*B156*README!B$6) -> -0.1981461432 | E156: =SIN(2*PI()*B156*README!B$7) -> 0.3420201433 | F156: 0.1937198858
A157: 155 | B157: =A157/README!B$4 -> 0.003514739229 | C157: =SIN(2*PI()*B157*README!B$5) -> -0.09247698697 | D157: =SIN(2*PI()*B157*README!B$6) -> 0.3620230379 | E157: =SIN(2*PI()*B157*README!B$7) -> -0.6038044103 | F157: -0.3342583594
A158: 156 | B158: =A158/README!B$4 -> 0.003537414966 | C158: =SIN(2*PI()*B158*README!B$5) -> -0.2329258084 | D158: =SIN(2*PI()*B158*README!B$6) -> 0.8077589697 | E158: =SIN(2*PI()*B158*README!B$7) -> -0.9972037972 | F158: -0.4223706359
A159: 157 | B159: =A159/README!B$4 -> 0.003560090703 | C159: =SIN(2*PI()*B159*README!B$5) -> -0.3686543757 | D159: =SIN(2*PI()*B159*README!B$6) -> 0.9981672732 | E159: =SIN(2*PI()*B159*README!B$7) -> -0.4782539786 | F159: 0.1512589189
A160: 158 | B160: =A160/README!B$4 -> 0.00358276644 | C160: =SIN(2*PI()*B160*README!B$5) -> -0.496912142 | D160: =SIN(2*PI()*B160*README!B$6) -> 0.8730610583 | E160: =SIN(2*PI()*B160*README!B$7) -> 0.4782539786 | F160: 0.8544028949
A161: 159 | B161: =A161/README!B$4 -> 0.003605442177 | C161: =SIN(2*PI()*B161*README!B$5) -> -0.6150999566 | D161: =SIN(2*PI()*B161*README!B$6) -> 0.4719856277 | E161: =SIN(2*PI()*B161*README!B$7) -> 0.9972037972 | F161: 0.8540894683
A162: 160 | B162: =A162/README!B$4 -> 0.003628117914 | C162: =SIN(2*PI()*B162*README!B$5) -> -0.7208227372 | D162: =SIN(2*PI()*B162*README!B$6) -> -0.07828154867 | E162: =SIN(2*PI()*B162*README!B$7) -> 0.6038044103 | F162: -0.1952998755
A163: 161 | B163: =A163/README!B$4 -> 0.003650793651 | C163: =SIN(2*PI()*B163*README!B$5) -> -0.8119380057 | D163: =SIN(2*PI()*B163*README!B$6) -> -0.6038044103 | E163: =SIN(2*PI()*B163*README!B$7) -> -0.3420201433 | F163: -1.757762559
A164: 162 | B164: =A164/README!B$4 -> 0.003673469388 | C164: =SIN(2*PI()*B164*README!B$5) -> -0.8865993064 | D164: =SIN(2*PI()*B164*README!B$6) -> -0.938468422 | E164: =SIN(2*PI()*B164*README!B$7) -> -0.9749279122 | F164: -2.799995641
A165: 163 | B165: =A165/README!B$4 -> 0.003696145125 | C165: =SIN(2*PI()*B165*README!B$5) -> -0.9432936238 | D165: =SIN(2*PI()*B165*README!B$6) -> -0.9764883539 | E165: =SIN(2*PI()*B165*README!B$7) -> -0.7158668493 | F165: -2.635648827
A166: 164 | B166: =A166/README!B$4 -> 0.003718820862 | C166: =SIN(2*PI()*B166*README!B$5) -> -0.9808720446 | D166: =SIN(2*PI()*B166*README!B$6) -> -0.7058463399 | E166: =SIN(2*PI()*B166*README!B$7) -> 0.1981461432 | F166: -1.488572241
A167: 165 | B167: =A167/README!B$4 -> 0.003741496599 | C167: =SIN(2*PI()*B167*README!B$5) -> -0.9985730401 | D167: =SIN(2*PI()*B167*README!B$6) -> -0.2120906514 | E167: =SIN(2*PI()*B167*README!B$7) -> 0.9308737486 | F167: -0.2797899428
A168: 166 | B168: =A168/README!B$4 -> 0.003764172336 | C168: =SIN(2*PI()*B168*README!B$5) -> -0.9960378985 | D168: =SIN(2*PI()*B168*README!B$6) -> 0.3487055838 | E168: =SIN(2*PI()*B168*README!B$7) -> 0.8119380057 | F168: 0.1646056911
A169: 167 | B169: =A169/README!B$4 -> 0.003786848073 | C169: =SIN(2*PI()*B169*README!B$5) -> -0.9733179946 | D169: =SIN(2*PI()*B169*README!B$6) -> 0.7992781348 | E169: =SIN(2*PI()*B169*README!B$7) -> -0.04984588566 | F169: -0.2238857455
A170: 168 | B170: =A170/README!B$4 -> 0.00380952381 | C170: =SIN(2*PI()*B170*README!B$5) -> -0.9308737486 | D170: =SIN(2*PI()*B170*README!B$6) -> 0.9972037972 | E170: =SIN(2*PI()*B170*README!B$7) -> -0.8660254038 | F170: -0.7996953552
A171: 169 | B171: =A171/README!B$4 -> 0.003832199546 | C171: =SIN(2*PI()*B171*README!B$5) -> -0.8695652955 | D171: =SIN(2*PI()*B171*README!B$6) -> 0.8799194899 | E171: =SIN(2*PI()*B171*README!B$7) -> -0.8898718088 | F171: -0.8795176144
A172: 170 | B172: =A172/README!B$4 -> 0.003854875283 | C172: =SIN(2*PI()*B172*README!B$5) -> -0.7906350542 | D172: =SIN(2*PI()*B172*README!B$6) -> 0.484498059 | E172: =SIN(2*PI()*B172*README!B$7) -> -0.0995678466 | F172: -0.4057048418
A173: 171 | B173: =A173/README!B$4 -> 0.00387755102 | C173: =SIN(2*PI()*B173*README!B$5) -> -0.6956825506 | D173: =SIN(2*PI()*B173*README!B$6) -> -0.06407021998 | E173: =SIN(2*PI()*B173*README!B$7) -> 0.7818314825 | F173: 0.02207871188
A174: 172 | B174: =A174/README!B$4 -> 0.003900226757 | C174: =SIN(2*PI()*B174*README!B$5) -> -0.5866320022 | D174: =SIN(2*PI()*B174*README!B$6) -> -0.5923862976 | E174: =SIN(2*PI()*B174*README!B$7) -> 0.9479273462 | F174: -0.2310909537
A175: 173 | B175: =A175/README!B$4 -> 0.003922902494 | C175: =SIN(2*PI()*B175*README!B$5) -> -0.4656933243 | D175: =SIN(2*PI()*B175*README!B$6) -> -0.9334527203 | E175: =SIN(2*PI()*B175*README!B$7) -> 0.2467573977 | F175: -1.152388647
A176: 174 | B176: =A176/README!B$4 -> 0.003945578231 | C176: =SIN(2*PI()*B176*README!B$5) -> -0.3353173459 | D176: =SIN(2*PI()*B176*README!B$6) -> -0.9794604955 | E176: =SIN(2*PI()*B176*README!B$7) -> -0.6801727378 | F176: -1.994950579
A177: 175 | B177: =A177/README!B$4 -> 0.003968253968 | C177: =SIN(2*PI()*B177*README!B$5) -> -0.1981461432 | D177: =SIN(2*PI()*B177*README!B$6) -> -0.7158668493 | E177: =SIN(2*PI()*B177*README!B$7) -> -0.984807753 | F177: -1.898820745
A178: 176 | B178: =A178/README!B$4 -> 0.003990929705 | C178: =SIN(2*PI()*B178*README!B$5) -> -0.05695949812 | D178: =SIN(2*PI()*B178*README!B$6) -> -0.2259921073 | E178: =SIN(2*PI()*B178*README!B$7) -> -0.3884347963 | F178: -0.6713864017
A179: 177 | B179: =A179/README!B$4 -> 0.004013605442 | C179: =SIN(2*PI()*B179*README!B$5) -> 0.0853814343 | D179: =SIN(2*PI()*B179*README!B$6) -> 0.3353173459 | E179: =SIN(2*PI()*B179*README!B$7) -> 0.5633200581 | F179: 0.9840188383
A180: 178 | B180: =A180/README!B$4 -> 0.004036281179 | C180: =SIN(2*PI()*B180*README!B$5) -> 0.2259921073 | D180: =SIN(2*PI()*B180*README!B$6) -> 0.7906350542 | E180: =SIN(2*PI()*B180*README!B$7) -> 0.999689182 | F180: 2.016316344
A181: 179 | B181: =A181/README!B$4 -> 0.004058956916 | C181: =SIN(2*PI()*B181*README!B$5) -> 0.3620230379 | D181: =SIN(2*PI()*B181*README!B$6) -> 0.9960378985 | E181: =SIN(2*PI()*B181*README!B$7) -> 0.5214352034 | F181: 1.87949614
A182: 180 | B182: =A182/README!B$4 -> 0.004081632653 | C182: =SIN(2*PI()*B182*README!B$5) -> 0.490717552 | D182: =SIN(2*PI()*B182*README!B$6) -> 0.8865993064 | E182: =SIN(2*PI()*B182*README!B$7) -> -0.4338837391 | F182: 0.9434331193
A183: 181 | B183: =A183/README!B$4 -> 0.00410430839 | C183: =SIN(2*PI()*B183*README!B$5) -> 0.6094676482 | D183: =SIN(2*PI()*B183*README!B$6) -> 0.496912142 | E183: =SIN(2*PI()*B183*README!B$7) -> -0.9922392066 | F183: 0.1141405835
A184: 182 | B184: =A184/README!B$4 -> 0.004126984127 | C184: =SIN(2*PI()*B184*README!B$5) -> 0.7158668493 | D184: =SIN(2*PI()*B184*README!B$6) -> -0.04984588566 | E184: =SIN(2*PI()*B184*README!B$7) -> -0.6427876097 | F184: 0.02323335391
A185: 183 | B185: =A185/README!B$4 -> 0.004149659864 | C185: =SIN(2*PI()*B185*README!B$5) -> 0.8077589697 | D185: =SIN(2*PI()*B185*README!B$6) -> -0.5808479363 | E185: =SIN(2*PI()*B185*README!B$7) -> 0.2947551744 | F185: 0.5216662078
A186: 184 | B186: =A186/README!B$4 -> 0.004172335601 | C186: =SIN(2*PI()*B186*README!B$5) -> 0.8832818106 | D186: =SIN(2*PI()*B186*README!B$6) -> -0.9282475368 | E186: =SIN(2*PI()*B186*README!B$7) -> 0.962624247 | F186: 0.9176585208
A187: 185 | B187: =A187/README!B$4 -> 0.004195011338 | C187: =SIN(2*PI()*B187*README!B$5) -> 0.9409048976 | D187: =SIN(2*PI()*B187*README!B$6) -> -0.9822338162 | E187: =SIN(2*PI()*B187*README!B$7) -> 0.749781203 | F187: 0.7084522843
A188: 186 | B188: =A188/README!B$4 -> 0.004217687075 | C188: =SIN(2*PI()*B188*README!B$5) -> 0.9794604955 | D188: =SIN(2*PI()*B188*README!B$6) -> -0.7257420446 | E188: =SIN(2*PI()*B188*README!B$7) -> -0.1490422662 | F188: 0.1046761847
A189: 187 | B189: =A189/README!B$4 -> 0.004240362812 | C189: =SIN(2*PI()*B189*README!B$5) -> 0.9981672732 | D189: =SIN(2*PI()*B189*README!B$6) -> -0.239847689 | E189: =SIN(2*PI()*B189*README!B$7) -> -0.9115058523 | F189: -0.153186268
A190: 188 | B190: =A190/README!B$4 -> 0.004263038549 | C190: =SIN(2*PI()*B190*README!B$5) -> 0.9966461368 | D190: =SIN(2*PI()*B190*README!B$6) -> 0.3218610418 | E190: =SIN(2*PI()*B190*README!B$7) -> -0.8400259232 | F190: 0.4784812555
A191: 189 | B191: =A191/README!B$4 -> 0.004285714286 | C191: =SIN(2*PI()*B191*README!B$5) -> 0.9749279122 | D191: =SIN(2*PI()*B191*README!B$6) -> 0.7818314825 | E191: =SIN(2*PI()*B191*README!B$7) -> 6.859963986e-15 | F191: 1.756759395
A192: 190 | B192: =A192/README!B$4 -> 0.004308390023 | C192: =SIN(2*PI()*B192*README!B$5) -> 0.9334527203 | D192: =SIN(2*PI()*B192*README!B$6) -> 0.9946698137 | E192: =SIN(2*PI()*B192*README!B$7) -> 0.8400259232 | F192: 2.768148457
A193: 191 | B193: =A193/README!B$4 -> 0.00433106576 | C193: =SIN(2*PI()*B193*README!B$5) -> 0.8730610583 | D193: =SIN(2*PI()*B193*README!B$6) -> 0.8930991518 | E193: =SIN(2*PI()*B193*README!B$7) -> 0.9115058523 | F193: 2.677666062
A194: 192 | B194: =A194/README!B$4 -> 0.004353741497 | C194: =SIN(2*PI()*B194*README!B$5) -> 0.7949767663 | D194: =SIN(2*PI()*B194*README!B$6) -> 0.5092253566 | E194: =SIN(2*PI()*B194*README!B$7) -> 0.1490422662 | F194: 1.453244389
A195: 193 | B195: =A195/README!B$4 -> 0.004376417234 | C195: =SIN(2*PI()*B195*README!B$5) -> 0.700782227 | D195: =SIN(2*PI()*B195*README!B$6) -> -0.03561143311 | E195: =SIN(2*PI()*B195*README!B$7) -> -0.749781203 | F195: =C195+D195+E195 -> -0.08461040911
A196: 194 | B196: =A196/README!B$4 -> 0.004399092971 | C196: =SIN(2*PI()*B196*README!B$5) -> 0.5923862976 | D196: =SIN(2*PI()*B196*README!B$6) -> -0.5691916684 | E196: =SIN(2*PI()*B196*README!B$7) -> -0.962624247 | F196: -0.9394296178
A197: 195 | B197: =A197/README!B$4 -> 0.004421768707 | C197: =SIN(2*PI()*B197*README!B$5) -> 0.4719856277 | D197: =SIN(2*PI()*B197*README!B$6) -> -0.922853928 | E197: =SIN(2*PI()*B197*README!B$7) -> -0.2947551744 | F197: -0.7456234748
A198: 196 | B198: =A198/README!B$4 -> 0.004444444444 | C198: =SIN(2*PI()*B198*README!B$5) -> 0.3420201433 | D198: =SIN(2*PI()*B198*README!B$6) -> -0.984807753 | E198: =SIN(2*PI()*B198*README!B$7) -> 0.6427876097 | F198: -8.881784197e-16
A199: 197 | B199: =A199/README!B$4 -> 0.004467120181 | C199: =SIN(2*PI()*B199*README!B$5) -> 0.2051236021 | D199: =SIN(2*PI()*B199*README!B$6) -> -0.7354699214 | E199: =SIN(2*PI()*B199*README!B$7) -> 0.9922392066 | F199: 0.4618928873
A200: 198 | B200: =A200/README!B$4 -> 0.004489795918 | C200: =SIN(2*PI()*B200*README!B$5) -> 0.06407021998 | D200: =SIN(2*PI()*B200*README!B$6) -> -0.2536545839 | E200: =SIN(2*PI()*B200*README!B$7) -> 0.4338837391 | F200: 0.2442993752
... 1849 more rows
